Workbook

Sheet CP1 NY Region & SIC
A2: NY DPPO Rate Area Definitions
A3: Region 1 | D3: Region 2
A4: ZIP Codes 100 - 102 | D4: ZIP Codes: 103-119, 124 (Orange), 125 (Orange, Putnam), 127 (Orange)
A5: Region 3
A6: Zip Codes: 120-123, 124 (Ulster), 125 (Ulster), 126, 127 (Delaware, Sullivan, Ulster), 128-149
A8: NY DHMO Rate Area Definitions
A9: Region 1 | B9: Region 2
A10: Zip Codes: 100-102 | B10: Zip Codes: 103-149
A12: Level 1 and Level 2 rating apply based on industry code.
A13: Any Industries not listed as Level 2 or Ineligible will be eligible under Level 1 rating.
A15: SIC Level Classifications
A16: CoPower ONE NY Ineligible Industries by SIC | C16: Bundle Type | G16: Level 2 Eligible Industries - DPPO and MPB DPPO Bundles
A17: SIC Range | B17: Segment | C17: DPPO | D17: MPB DPPO | E17: DHMO | G17: Segment | H17: SIC Range
A18: 9611-9699 | B18: Admin of Economic Resources | C18: X | E18: X | G18: Advertising (Miscellaneous, not classified) | H18: 7319
A19: 9411-9499 | B19: Admin of Human Resources | C19: X | E19: X | G19: Amusement, Recreation, and Entertainment | H19: 7800-7999
A20: 3482-3483 | B20: Ammunition & Small Arms | C20: X | E20: X | G20: Automobile Dealerships | H20: 5511-5599
A21: 3292 | B21: ASPlatinumOS | C21: X | E21: X | G21: Hotels | H21: 7000-7099
A22: 7231-7241 | B22: Beauty and Barber Shops | C22: X | D22: X | G22: Insurance Carriers/Brokers | H22: 6300-6499
A23: 9211 | B23: Courts | C23: X | E23: X | G23: Jewelry Manufacturing | H23: 3911-3915
A24: 8021, 8071, 8072 | B24: Dental Offices, Dental Labs, and Medical Labs | C24: X | D24: X | G24: Legal | H24: 8100-8199
A25: 7361-7363 | B25: Employment Agencies & PEOs | C25: X | D25: X | G25: Medical Groups | H25: 8000-8059, 8082-8099
A26: 2873-2892 | B26: Fertilizer/Pesticide/Explosives | C26: X | E26: X | G26: Photographic Studios | H26: 7221
A27: 9311 | B27: Finance Tax & Monetary Policy | C27: X | E27: X | G27: Real Estate | H27: 6500-6799
A28: 8321 | B28: High Risk Industries | C28: X | E28: X | G28: Religious Organizations (Admin. And Mgmt. staff only) | H28: 8661
A29: 8631 | B29: Labor Unions | C29: X | D29: X | E29: X | G29: Restaurants | H29: 5800-5899
A30: 8100 | B30: Legal | E30: X | G30: Tax Return Preparation Services / Misc. Personal Svcs | H30: 7291-7299
A31: 2411 | B31: Logging Camps | C31: X | E31: X | G31: Watch, Clock and Jewelry Repair | H31: 7631
A32: 1011-1299 | B32: Metal/Coal Mining | C32: X | E32: X
A33: 7389 | B33: Miscellaneous Business Services | C33: X | D33: X
A34: 8999 | B34: Miscellaneous Services not classified elsewhere | C34: X | D34: X
A35: 9711-9799 | B35: National Security | C35: X | D35: X | E35: X
A36: 9999 | B36: Non Classifiable | C36: X | E36: X
A37: 1411-1499 | B37: Nonmetal Mining | C37: X | E37: X
A38: No SIC | B38: Partnerships | C38: X | D38: X
A39: 4611-4699 | B39: Pipe Lines-No Nat Gas | C39: X | E39: X
A40: 9221-9299 | B40: Police/Fire/Correctional | C40: X | E40: X
A41: 8811 | B41: Private Households | C41: X | D41: X | E41: X
A42: No SIC | B42: Religious Organizations (except Churches #8661) | C42: X | D42: X | E42: X
A43: No SIC | B43: Seasonal Employees (Agriculture) | C43: X | D43: X | E43: X
A44: No SIC | B44: Seasonal Employees (Christmas/Part-time Help) | C44: X | D44: X | E44: X
A45: 2111-2199 | B45: Tobacco Manufacturers | C45: X | E45: X
A46: 4511-4599 | B46: Transporation By Air | C46: X | E46: X
A47: 4311 | B47: U.S. Postal Service | C47: X | E47: X
A48: Varies | B48: Groups with high turnover* | C48: X | D48: X | E48: X
A50: "*" A business has high turnover if 20% or more of the average number of its employees during the past 12 months were newly hired for reasons other than the growth of the business.
A51: Cannabis groups are eligible for CoPower ONE MPB which does not include Unum (Life). Generally, groups in the cannabis or cannabis related industries are ineligible for Unum life coverage.

Sheet CoPower ONE DHMO
I5: =IF(AND(HMO_EligibleEEs<>"Enter your group size",F14>HMO_EligibleEEs),"Total enrolling employees higher than eligible employees. Change eligible or enrolling employees.","") -> 
A7: Company Information
A8: Company Name: | I8: =IF(H12="Yes",,"Must have a minimum of 2 enrolled for Good plan") -> Must have a minimum of 2 enrolled for Good plan
A9: Effective Date: | B9: Select your effective date | I9: =IF(H13="Yes",,"Must have a minimum of 5 enrolled for Better and Best plans") -> Must have a minimum of 5 enrolled for Better and Best plans
A10: Employer Contribution for Employees | B10: Select employer contribution for employees | F10: Enrolling Employees | I10: =IF(OR(AND(OR(HMO_EligibleEEs="Enter your group size",HMO_EligibleEEs<10),OR(B13="Enhanced Life $50,000",B13="Enhanced Life $100,000",B13="Enhanced Life $150,000")),AND((SUM(G13)<10),OR(B13="Enhanced Life $50,000",B13="Enhanced Life $100,000",B13="Enhanced Life $150,000"))),"Enhanced Life is only available for CoPower ONE plans with 10+ enrolling employees.","") -> 
A11: Eligible Employees | B11: Enter your group size | D11: Number of Single | F11: 0 | G11: =IF(GroupSize>49,"50-99",IF(AND(GroupSize<50,GroupSize>9),"10-49",IF(AND(GroupSize>4,GroupSize<10),"5-9","0-4"))) -> 0-4
A12: Region | B12: Select your NY DHMO Region | D12: Number of Two Party | F12: 0 | G12: =SUM(F11+F12+F13) -> 0 | H12: =IF(SUM(G12)>1,"Yes","No") -> No
A13: Life Amount2 | B13: Standard Life Amount | D13: Number of Three Party+ | F13: 0 | G13: =SUM(F11+F12+F13) -> 0 | H13: =IF(SUM(G13)>4,"Yes","No") -> No | I13: =IF(GroupSize=0,"",IF(OR(HMO_ERContribution="Select employer contribution for employees",HMO_EligibleEEs="Enter your group size"),"Incomplete information. Select employer contribution / Enter eligible employees.",IF(HMO_ERContribution="51-99% (51+ Eligible)",IF((0.75*HMO_EligibleEEs)>GroupSize,"Employee participation below 75%. CoPower ONE Non-Vol requires minimum 75% participation with 51-99% employer contribution for employees.",""),IF(HMO_ERContribution="75-99% (2-50 Eligible)",IF((0.75*HMO_EligibleEEs)>GroupSize,"Employee participation below 75%. CoPower ONE Non-Vol requires minimum 75% participation with 75-99% employer contribution for employees.",""),IF(HMO_EligibleEEs<>GroupSize,"Employee Participation not 100%. CoPower ONE Non-Vol requires 100% participation with 100% employer contribution for employees.",""))))) -> 
D14: Total Enrolling Employees | F14: =F13+F12+EECOunt_HMO_Single -> 0 | L14: =IF(OR(I8="Must have a minimum of 2 enrolled for Good plan",I5="Total enrolling employees higher than eligible employees. Change eligible or enrolling employees.",I10="Enhanced Life is only available for CoPower ONE plans with 10+ enrolling employees.",I13<>""),1,0) -> 1
L15: =IF(OR(I9="Must have a minimum of 5 enrolled for Better and Best plans",I10="Enhanced Life is only available for CoPower ONE plans with 10+ enrolling employees.",I5="Total enrolling employees higher than eligible employees. Change eligible or enrolling employees.",I13<>""),1,0) -> 1
A16: Cost Comparison - Monthly Rates
A18: =CONCATENATE(B12,B13,G11) -> Select your NY DHMO RegionStandard Life Amount0-4 | C18: Good | E18: Better | G18: Best
A20: Single | C20: =IF(L14=1,"",_xlfn.IFNA(VLOOKUP(AreaSIC_Selection,List_RateTable_HMO,2,FALSE),"")) ->  | E20: =IF(L15=1,"",_xlfn.IFNA(VLOOKUP(AreaSIC_Selection,List_RateTable_HMO,5,FALSE),"")) ->  | G20: =IF(L15=1,"",_xlfn.IFNA(VLOOKUP(AreaSIC_Selection,List_RateTable_HMO,8,FALSE),"")) -> 
A21: Two Party | C21: =IF(L14=1,"",_xlfn.IFNA(VLOOKUP(AreaSIC_Selection,List_RateTable_HMO,3,FALSE),"")) ->  | E21: =IF(L15=1,"",_xlfn.IFNA(VLOOKUP(AreaSIC_Selection,List_RateTable_HMO,6,FALSE),"")) ->  | G21: =IF(L15=1,"",_xlfn.IFNA(VLOOKUP(AreaSIC_Selection,List_RateTable_HMO,9,FALSE),"")) -> 
A22: Three Party+ | C22: =IF(L14=1,"",_xlfn.IFNA(VLOOKUP(AreaSIC_Selection,List_RateTable_HMO,4,FALSE),"")) ->  | E22: =IF(L15=1,"",_xlfn.IFNA(VLOOKUP(AreaSIC_Selection,List_RateTable_HMO,7,FALSE),"")) ->  | G22: =IF(L15=1,"",_xlfn.IFNA(VLOOKUP(AreaSIC_Selection,List_RateTable_HMO,10,FALSE),"")) -> 
A23: Total Cost | C23: =IFERROR(SUM((C20*F11)+(C21*F12)+(C22*F13)),"") ->  | E23: =IFERROR(SUM((E20*F11)+(E21*F12)+(E22*F13)),"") ->  | G23: =IFERROR(SUM((G20*F11)+(G21*F12)+(G22*F13)),"") -> 
A25: Benefit Comparison
C27: Good | E27: Better | G27: Best
C28: In Network | D28: Out of Network | E28: In Network | F28: Out of Network | G28: In Network | H28: Out of Network
A29: DHMO - DeltaCare® USA | C29: DeltaCare® USA Plan 13B
A30: Calendar Maximum | C30: None | G30: None
A31: Deductible | C31: None | G31: None
A32: Diagnostic & Preventive | C32: Exams, x-rays, cleanings, and flouride treatments | G32: No cost
A33: Restorative | C33: Fillings (amalgan cost per surface) Crown – porcelain fused to high noble metal; full cast high noble metal | G33: No cost $355 copay
A34: Periodontics | C34: Periodontic scaling & root planing—four or more teeth per quadrant | G34: $50 copay
A35: Endodontics | C35: Root canal – anterior (excluding final restoration) Root canal – molar (excluding final restoration) | G35: $95 copay $335 copay
A36: Oral Surgery | C36: Extraction, erupted tooth or exposed root Removal of impacted tooth – completely boney | G36: $5 copay $95 copay
A37: Prosthodontics | C37: Complete denture – maxillary Maxillary partial denture – resin base | G37: $285 copay $245 copay
A38: Orthodontics | C38: Child Adult | G38: $1,900 copay $2,100 copay
C39: Good | E39: Better | G39: Best
A40: Vision - Vision Service Plan
A41: Annual Copayment | C41: $25 exam/$25 materials | E41: $10 exam/$25 materials | G41: $10 exam/$25 materials
A42: Eye Exam | C42: Covered in full* | D42: Reimbursed up to $45 | E42: Covered in full* | F42: Reimbursed up to $45 | G42: Covered in full* | H42: Reimbursed up to $45
A43: Single-Vision Lenses | C43: Covered in full* | D43: Reimbursed up to $30 | E43: Covered in full* | F43: Reimbursed up to $30 | G43: Covered in full* | H43: Reimbursed up to $30
A44: Bifocal Lenses | C44: Covered in full* | D44: Reimbursed up to $50 | E44: Covered in full* | F44: Reimbursed up to $50 | G44: Covered in full* | H44: Reimbursed up to $50
A45: Trifocal Lenses | C45: Covered in full* | D45: Reimbursed up to $65 | E45: Covered in full* | F45: Reimbursed up to $65 | G45: Covered in full* | H45: Reimbursed up to $65
A46: Frames | C46: $150 allowance | D46: Reimbursed up to $70 | E46: $150 allowance | F46: Reimbursed up to $70 | G46: $175 allowance | H46: Reimbursed up to $70
A47: Contact Lenses | C47: $150 allowance | D47: Reimbursed up to $105 | E47: $150 allowance | F47: Reimbursed up to $105 | G47: $175 allowance | H47: Reimbursed up to $105
A48: Vision - Frequency
A49: Eye Exam | C49: 12 months | E49: 12 months | G49: 12 months
A50: Lenses | C50: 24 months | E50: 12 months | G50: 12 months
A51: Frames | C51: 24 months | E51: 24 months | G51: 12 months
A52: Contact Lenses (in lieu of lenses and a frame) | C52: 24 months | E52: 12 months | G52: 12 months
A53: Life - UNUM
A54: Basic Group Term Life with AD&D and EAP | C54: =IF($B$13="Standard Life Amount","$15,000 policy",$B$13) -> $15,000 policy | E54: =IF($B$13="Standard Life Amount","$20,000 policy",$B$13) -> $20,000 policy | G54: =IF($B$13="Standard Life Amount","$25,000 policy",$B$13) -> $25,000 policy
A55: 1 1-year rate guarantee.
A56: 2 Employers with 2-9 enrolling employees have the option of substituting the standard group term life policy amounts with a $35,000 policy, and those with 10 or more employees have the option of either a $50,000, $100,000 or $150,000 policy for an additional charge.
A57: * After Copay
A58: Presented by
A59: **Enter your contact information here.** | F59: License #
A61: This document is not meant to replace a quote and does not include all exclusions, limitations or program guidelines. While the information and rates provided here are believed to be accurate as of the print date, they are subject to change without notice. For the most up-to-date information, contact CoPower. CoPower ONE plans are not available to groups currently insured with UNUM.

Sheet CoPower ONE DPPO
K6: =IF(AND(PPO_EligibleEEs<>"Enter your group size",G16>PPO_EligibleEEs),"Total enrolling employees higher than eligible employees. Change eligible or enrolling employees.","") -> 
A8: Company Information
A9: Company Name: | K9: =IF(J14="Yes","","Must have a minimum of 2 enrolled for Good plan") -> Must have a minimum of 2 enrolled for Good plan
A10: Effective Date: | B10: Select your effective date | K10: =IF(J15="Yes","","Must have a minimum of 5 enrolled for Better, Better Plus and Best plans") -> Must have a minimum of 5 enrolled for Better, Better Plus and Best plans
A11: Employer Contribution for Employees | B11: Select employer contribution for employees | K11: =IF(OR(AND(OR(PPO_EligibleEEs="Enter your group size",PPO_EligibleEEs<10),OR(B15="Enhanced Life $50,000",B15="Enhanced Life $100,000",B15="Enhanced Life $150,000")),AND((SUM(I14)<10),OR(B15="Enhanced Life $50,000",B15="Enhanced Life $100,000",B15="Enhanced Life $150,000"))),"Enhanced Life is only available for CoPower ONE plans with 10+ enrolling employees.","") -> 
A12: Eligible Employees | B12: Enter your group size | G12: Enrolling Employees | L12: =IF(OR(K9<>"",K11<>"",K6<>"",K13<>""),1,0) -> 1
A13: Region | B13: Select your NY DPPO Region | E13: Number of Single | G13: 0 | I13: =IF(GroupSize>49,"50-99",IF(AND(GroupSize<50,GroupSize>9),"10-49",IF(AND(GroupSize>4,GroupSize<10),"5-9",IF(GroupSize>1,"2-4","")))) ->  | K13: =IF(GroupSize=0,"",IF(OR(PPO_ERContribution="Select employer contribution for employees",PPO_EligibleEEs="Enter your group size"),"Incomplete information. Select employer contribution / Enter eligible employees.",IF(PPO_ERContribution="51-99% (51+ Eligible)",IF((0.75*PPO_EligibleEEs)>GroupSize,"Employee participation below 75%. CoPower ONE Non-Vol requires minimum 75% participation with 51-99% employer contribution for employees.",""),IF(PPO_ERContribution="75-99% (2-50 Eligible)",IF((0.75*PPO_EligibleEEs)>GroupSize,"Employee participation below 75%. CoPower ONE Non-Vol requires minimum 75% participation with 75-99% employer contribution for employees.",""),IF(PPO_EligibleEEs<>GroupSize,"Employee Participation not 100%. CoPower ONE Non-Vol requires 100% participation with 100% employer contribution for employees.",""))))) ->  | L13: =IF(OR(K9<>"",K10<>"",K11<>"",K6<>"",K13<>""),1,0) -> 1
A14: SIC Level | B14: Select your SIC Level | E14: Number of Two Party | G14: 0 | I14: =SUM(G13+G14+G15) -> 0 | J14: =IF(SUM(I14)>1,"Yes","No") -> No
A15: Life Amount2 | B15: Standard Life Amount | E15: Number of Three Party+ | G15: 0 | I15: =SUM(G13+G14+G15) -> 0 | J15: =IF(SUM(I15)>4,"Yes","No") -> No
E16: Total Enrolling Employees | G16: =EECount_PPO_Single+G14+G15 -> 0
A18: Cost Comparison - Monthly Rates
A20: =CONCATENATE(B13,B14,B15,I13) -> Select your NY DPPO RegionSelect your SIC LevelStandard Life Amount | B20: =SUM(CPPPO_EECheck) -> 0 | C20: Good | E20: Better | G20: Better Plus | I20: Best
A22: Single | C22: =IF(L12=1,"",_xlfn.IFNA(VLOOKUP(AreaSIC_Selection,List_RateTable_PPO,2,FALSE),"")) ->  | E22: =IF(L13=1,"",_xlfn.IFNA(VLOOKUP(AreaSIC_Selection,List_RateTable_PPO,5,FALSE),"")) ->  | G22: =IF(L13=1,"",_xlfn.IFNA(VLOOKUP(AreaSIC_Selection,List_RateTable_PPO,8,FALSE),"")) ->  | I22: =IF(L13=1,"",_xlfn.IFNA(VLOOKUP(AreaSIC_Selection,List_RateTable_PPO,11,FALSE),"")) -> 
A23: Two Party | C23: =IF(L12=1,"",_xlfn.IFNA(VLOOKUP(AreaSIC_Selection,List_RateTable_PPO,3,FALSE),"")) ->  | E23: =IF(L13=1,"",_xlfn.IFNA(VLOOKUP(AreaSIC_Selection,List_RateTable_PPO,6,FALSE),"")) ->  | G23: =IF(L13=1,"",_xlfn.IFNA(VLOOKUP(AreaSIC_Selection,List_RateTable_PPO,9,FALSE),"")) ->  | I23: =IF(L13=1,"",_xlfn.IFNA(VLOOKUP(AreaSIC_Selection,List_RateTable_PPO,12,FALSE),"")) -> 
A24: Three Party+ | C24: =IF(L12=1,"",_xlfn.IFNA(VLOOKUP(AreaSIC_Selection,List_RateTable_PPO,4,FALSE),"")) ->  | E24: =IF(L13=1,"",_xlfn.IFNA(VLOOKUP(AreaSIC_Selection,List_RateTable_PPO,7,FALSE),"")) ->  | G24: =IF(L13=1,"",_xlfn.IFNA(VLOOKUP(AreaSIC_Selection,List_RateTable_PPO,10,FALSE),"")) ->  | I24: =IF(L13=1,"",_xlfn.IFNA(VLOOKUP(AreaSIC_Selection,List_RateTable_PPO,13,FALSE),"")) -> 
A25: Total Cost | C25: =IFERROR(SUM((C22*$G$13)+(C23*$G$14)+(C24*$G$15)),"") ->  | E25: =IFERROR(SUM((E22*$G$13)+(E23*$G$14)+(E24*$G$15)),"") ->  | G25: =IFERROR(SUM((G22*$G$13)+(G23*$G$14)+(G24*$G$15)),"") ->  | I25: =IFERROR(SUM((I22*$G$13)+(I23*$G$14)+(I24*$G$15)),"") -> 
A27: Benefit Comparison
C29: Good | E29: Better | G29: Better Plus | I29: Best
C30: In Network | D30: Out of Network | E30: In Network | F30: Out of Network | G30: In Network | H30: Out of Network | I30: In Network | J30: Out of Network
A31: DPPO - Delta Dental | C31: Delta Dental DPPO3 | G31: Delta Dental DPPO + Premier4
A32: Calendar Maximum (per patient) | C32: $1,000 | D32: $750 | E32: $1,500 | F32: $1,250 | G32: $1,500 | H32: $1,250 | I32: $2,000 | J32: $1,500
A33: Deductible (per patient) | C33: $50 | D33: $75 | E33: $50 | F33: $75 | G33: $50 | H33: $75 | I33: $50 | J33: $75
A34: Deductible Waived for Diagnostic & Preventive | C34: Yes | D34: No | E34: Yes | F34: No | G34: Yes | H34: No | I34: Yes
A35: Diagnostic and Preventive Services | C35: 100% | D35: 50% | E35: 100% | F35: 80% | G35: 100% | H35: 80% | I35: 100%
A36: Basic, Oral Surgery, Endodontics and Periodontics | C36: 80% | D36: 50% | E36: 80% | G36: 80% | I36: 80%
A37: Major Services | C37: 50% | E37: 50% | G37: 50% | I37: 50%
A38: Orthodontics-Children Only (Available to groups with 5+ enrolled) | C38: Not available | E38: 50% lifetime max $1,000 | G38: 50% lifetime max $1,000 | I38: 50% lifetime max $1,000
C39: Good | E39: Better | G39: Better Plus | I39: Best
A40: Vision - Vision Service Plan
A41: Annual Copayment | C41: $25 exam/$25 materials | E41: $10 exam/$25 materials | G41: $10 exam/$25 materials | I41: $10 exam/$25 materials
A42: Eye Exam | C42: Covered in full* | D42: Reimbursed up to $45 | E42: Covered in full* | F42: Reimbursed up to $45 | G42: Covered in full* | H42: Reimbursed up to $45 | I42: Covered in full* | J42: Reimbursed up to $45
A43: Single-Vision Lenses | C43: Covered in full* | D43: Reimbursed up to $30 | E43: Covered in full* | F43: Reimbursed up to $30 | G43: Covered in full* | H43: Reimbursed up to $30 | I43: Covered in full* | J43: Reimbursed up to $30
A44: Bifocal Lenses | C44: Covered in full* | D44: Reimbursed up to $50 | E44: Covered in full* | F44: Reimbursed up to $50 | G44: Covered in full* | H44: Reimbursed up to $50 | I44: Covered in full* | J44: Reimbursed up to $50
A45: Trifocal Lenses | C45: Covered in full* | D45: Reimbursed up to $65 | E45: Covered in full* | F45: Reimbursed up to $65 | G45: Covered in full* | H45: Reimbursed up to $65 | I45: Covered in full* | J45: Reimbursed up to $65
A46: Frames | C46: $150 allowance | D46: Reimbursed up to $70 | E46: $150 allowance | F46: Reimbursed up to $70 | G46: $150 allowance | H46: Reimbursed up to $70 | I46: $175 allowance | J46: Reimbursed up to $70
A47: Contact Lenses | C47: $150 allowance | D47: Reimbursed up to $105 | E47: $150 allowance | F47: Reimbursed up to $105 | G47: $150 allowance | H47: Reimbursed up to $105 | I47: $175 allowance | J47: Reimbursed up to $105
A48: Vision - Frequency
A49: Eye Exam | C49: 12 months | E49: 12 months | G49: 12 months | I49: 12 months
A50: Lenses | C50: 24 months | E50: 12 months | G50: 12 months | I50: 12 months
A51: Frames | C51: 24 months | E51: 24 months | G51: 24 months | I51: 12 months
A52: Contact Lenses (in lieu of lenses and a frame) | C52: 24 months | E52: 12 months | G52: 12 months | I52: 12 months
A53: Life - UNUM
A54: Basic Group Term Life with AD&D and EAP | C54: =IF($B$15="Standard Life Amount","$15,000 policy",$B$15) -> $15,000 policy | E54: =IF($B$15="Standard Life Amount","$20,000 policy",$B$15) -> $20,000 policy | G54: =IF($B$15="Standard Life Amount","$20,000 policy",$B$15) -> $20,000 policy | I54: =IF($B$15="Standard Life Amount","$25,000 policy",$B$15) -> $25,000 policy
A55: 1 1-year rate guarantee.
A56: 2 Employers with 10 or more enrolling employees have the option of substituting the standard group term life policy amounts with either a $50,000, $100,000 or $150,000 policy for an additional charge.
A57: 3 Delta Dental DPPO: All dentists (in- and out-of-network) are reimbursed at the lesser of the submitted charge or the DPPO provider's contracted fee.
A58: 4 Delta Dental DPPO + Premier: DPPO dentists are reimbursed at the lesser of the submitted charge or the DPPO provider's contracted fee. Delta Dental Premier dentists are reimbursed at the lesser of the submitted charge or the Premier provider's contracted fee. Non-contracted dentists are reimbursed at the lesser of the submitted charge or the plan contract allowance.
A59: * After Copay
A61: Presented by
A62: **Enter your contact information here.** | H62: License #
A64: This document is not meant to replace a quote and does not include all exclusions, limitations or program guidelines. While the information and rates provided here are believed to be accurate as of the print date, they are subject to change without notice. For the most up-to-date information, contact CoPower. CoPower ONE plans are not available to groups currently insured with UNUM.

Sheet CoPower ONE Non-MPB Dual Choice
K5: =IF(AND(HP_EligibleEEs<>"Enter your group size",GroupSize_DualTotal>HP_EligibleEEs),"Total enrolling employees higher than eligible employees. Change eligible or enrolling employees.","") -> 
A8: Company Information
A9: Company Name: | K9: =IF(SUM(GroupSize_DualTotal=0),"",IF(J16="Yes","","Dual Choice requires a minimum of 4 enrolled. ")) -> 
A10: Effective Date: | B10: Select your effective date | E10: =IF(GroupSize_DualTotal>49,"50-99",IF(AND(GroupSize_DualTotal<50,GroupSize_DualTotal>9),"10-49",IF(AND(GroupSize_DualTotal>4,GroupSize_DualTotal<10),"5-9",IF(GroupSize_DualTotal>1,"2-4","")))) ->  | I10: =IF(OR(K9<>"",K10<>"",K16<>"",K5<>"",L13<>""),1,0) -> 0 | J10: Good Eligible | K10: =IF(GroupSize_DualTotal=0,"",IF(I15="Yes","","CoPower ONE Good: Dual Choice requires a minimum of 2 enrolled on DHMO and on DPPO.")) -> 
A11: Employer Contribution for Employees | B11: Select employer contribution for employees | E11: =IF(GroupSize_DualPPO>49,"50-99",IF(AND(GroupSize_DualPPO<50,GroupSize_DualPPO>9),"10-49",IF(AND(GroupSize_DualPPO>4,GroupSize_DualPPO<10),"5-9",IF(GroupSize_DualPPO>1,"2-4","")))) ->  | F11: =SUM(GroupSize_DualPPO+GroupSize_DualHMO) -> 0 | G11: Enrolling Employees | I11: =IF(OR(K9<>"",K10<>"",K13<>"",K16<>"",K5<>"",L13<>""),1,0) -> 0 | J11: Better/BetterPlus/Best Eligible
A12: Eligible Employees | B12: Enter your group size | E12: =IF(GroupSize_DualHMO>49,"50-99",IF(AND(GroupSize_DualHMO<50,GroupSize_DualHMO>9),"10-49",IF(AND(GroupSize_DualHMO>1,GroupSize_DualHMO<10),"2-9",""))) ->  | G12: DPPO | H12: DHMO
A13: DPPO Region | B13: Select your NY DPPO Region | E13: Number of Single | G13: 0 | H13: 0 | I13: =IF(SUM(G13:G15)<2,"0","1") -> 0 | J13: =IF(GroupSize_DualPPO<5,"0","1") -> 0 | K13: =IF(GroupSize_DualTotal=0,"",IF(J15="Yes","","CoPower ONE Better, Better Plus, and Best: Dual Choice requires a minimum of 5 enrolled on DPPO and 2 enrolled on DHMO.")) ->  | L13: =IF(GroupSize_DualTotal=0,"",IF(OR(Dual_ERContribution="Select employer contribution for employees",HP_EligibleEEs="Enter your group size"),"Incomplete information. Select employer contribution / Enter eligible employees.",IF(Dual_ERContribution="51-99% (51+ Eligible)",IF((0.75*HP_EligibleEEs)>GroupSize_DualTotal,"Employee participation below 75%. CoPower ONE Non-Vol requires minimum 75% participation with 51-99% employer contribution for employees.",""),IF(Dual_ERContribution="75-99% (2-50 Eligible)",IF((0.75*HP_EligibleEEs)>GroupSize_DualTotal,"Employee participation below 75%. CoPower ONE Non-Vol requires minimum 75% participation with 75-99% employer contribution for employees.",""),IF(GroupSize_DualTotal<>HP_EligibleEEs,"Employee Participation not 100%. CoPower ONE Non-Vol requires 100% participation with 100% employer contribution for employees.",""))))) -> 
A14: DHMO Region | B14: Select your NY DHMO Region | E14: Number of Two Party | G14: 0 | H14: 0 | I14: =IF(SUM(H13:H15)<2,"0","1") -> 0 | J14: =IF(GroupSize_DualHMO<2,"0","1") -> 0
A15: SIC Level | B15: Select your SIC Level | E15: Number of Three Party+ | G15: 0 | H15: 0 | I15: =IF(SUM(I13+I14)>=2,"Yes","No") -> No | J15: =IF(SUM(J13+J14)>=2,"Yes","No") -> No
A16: Life Amount3 | B16: Standard Life Amount | E16: Total Enrolling Employees | G16: =SUM(G13+G14+G15) -> 0 | H16: =SUM(H13+H14+H15) -> 0 | J16: =IF(GroupSize_DualTotal>3,"Yes","No") -> No | K16: =IF(OR(AND(OR(PPO_EligibleEEs="Enter Number of Employees",PPO_EligibleEEs="2-9 Employees"),OR(B16="Enhanced Life $50,000",B16="Enhanced Life $100,000",B16="Enhanced Life $150,000")),AND((SUM(G16:H16)<10),OR(B16="Enhanced Life $50,000",B16="Enhanced Life $100,000",B16="Enhanced Life $150,000"))),"Enhanced Life is only available for CoPower ONE plans with 10+ enrolling employees.","") -> 
A17: .
A18: Cost Comparison - Monthly Rates
A20: =IF(OR(B16="Enhanced Life $50,000",B16="Enhanced Life $100,000",B16="Enhanced Life $150,000"),CONCATENATE(Region_HP_PPO,SIC_HP,Life_HP,E10),CONCATENATE(Region_HP_PPO,SIC_HP,Life_HP,E11)) -> Select your NY DPPO RegionSelect your SIC LevelStandard Life Amount | B20: =IF(OR(B16="Enhanced Life $50,000",B16="Enhanced Life $100,000",B16="Enhanced Life $150,000"),CONCATENATE(Region_HP_HMO,Life_HP,E10),CONCATENATE(Region_HP_HMO,Life_HP,E12)) -> Select your NY DHMO RegionStandard Life Amount | C20: Good | E20: Better | G20: Better Plus | I20: Best
A21: DPPO Enrollment
A22: Single | C22: =IF(I10=1,"",_xlfn.IFNA(VLOOKUP(AreaSIC_SelectionPPO,List_RateTable_PPO,2,FALSE),"")) ->  | E22: =IF(I11=1,"",_xlfn.IFNA(VLOOKUP(AreaSIC_SelectionPPO,List_RateTable_PPO,5,FALSE),"")) ->  | G22: =IF(I11=1,"",_xlfn.IFNA(VLOOKUP(AreaSIC_SelectionPPO,List_RateTable_PPO,8,FALSE),"")) ->  | I22: =IF(I11=1,"",_xlfn.IFNA(VLOOKUP(AreaSIC_SelectionPPO,List_RateTable_PPO,11,FALSE),"")) -> 
A23: Two Party | C23: =IF(I10=1,"",_xlfn.IFNA(VLOOKUP(AreaSIC_SelectionPPO,List_RateTable_PPO,3,FALSE),"")) ->  | E23: =IF(I11=1,"",_xlfn.IFNA(VLOOKUP(AreaSIC_SelectionPPO,List_RateTable_PPO,6,FALSE),"")) ->  | G23: =IF(I11=1,"",_xlfn.IFNA(VLOOKUP(AreaSIC_SelectionPPO,List_RateTable_PPO,9,FALSE),"")) ->  | I23: =IF(I11=1,"",_xlfn.IFNA(VLOOKUP(AreaSIC_SelectionPPO,List_RateTable_PPO,12,FALSE),"")) -> 
A24: Three Party+ | C24: =IF(I10=1,"",_xlfn.IFNA(VLOOKUP(AreaSIC_SelectionPPO,List_RateTable_PPO,4,FALSE),"")) ->  | E24: =IF(I11=1,"",_xlfn.IFNA(VLOOKUP(AreaSIC_SelectionPPO,List_RateTable_PPO,7,FALSE),"")) ->  | G24: =IF(I11=1,"",_xlfn.IFNA(VLOOKUP(AreaSIC_SelectionPPO,List_RateTable_PPO,10,FALSE),"")) ->  | I24: =IF(I11=1,"",_xlfn.IFNA(VLOOKUP(AreaSIC_SelectionPPO,List_RateTable_PPO,13,FALSE),"")) ->  | L24: =IFERROR(IF(I10=1,"",IF(GroupSize_DualPPO>0,SUM(($G$13*C22)+($G$14*C23)+($G$15*C24)),0)),"") -> 0 | M24: =IFERROR(IF(I11=1,"",IF(GroupSize_DualPPO>0,SUM(($G$13*E22)+($G$14*E23)+($G$15*E24)),0)),"") -> 0 | N24: =IFERROR(IF(I11=1,"",IF(GroupSize_DualPPO>0,SUM(($G$13*G22)+($G$14*G23)+($G$15*G24)),0)),"") -> 0 | O24: =IFERROR(IF(I11=1,"",IF(GroupSize_DualPPO>0,SUM(($G$13*I22)+($G$14*I23)+($G$15*I24)),0)),"") -> 0
A25: DHMO Enrollment
A26: Single | C26: =IF(I10=1,"",_xlfn.IFNA(VLOOKUP(AreaSIC_SelectionHMO,List_RateTable_HMO,2,FALSE),"")) ->  | E26: =IF(I11=1,"",_xlfn.IFNA(VLOOKUP(AreaSIC_SelectionHMO,List_RateTable_HMO,5,FALSE),"")) ->  | G26: =IF(I11=1,"",_xlfn.IFNA(VLOOKUP(AreaSIC_SelectionHMO,List_RateTable_HMO,5,FALSE),"")) ->  | I26: =IF(I11=1,"",_xlfn.IFNA(VLOOKUP(AreaSIC_SelectionHMO,List_RateTable_HMO,8,FALSE),"")) -> 
A27: Two Party | C27: =IF(I10=1,"",_xlfn.IFNA(VLOOKUP(AreaSIC_SelectionHMO,List_RateTable_HMO,3,FALSE),"")) ->  | E27: =IF(I11=1,"",_xlfn.IFNA(VLOOKUP(AreaSIC_SelectionHMO,List_RateTable_HMO,6,FALSE),"")) ->  | G27: =IF(I11=1,"",_xlfn.IFNA(VLOOKUP(AreaSIC_SelectionHMO,List_RateTable_HMO,6,FALSE),"")) ->  | I27: =IF(I11=1,"",_xlfn.IFNA(VLOOKUP(AreaSIC_SelectionHMO,List_RateTable_HMO,9,FALSE),"")) -> 
A28: Three Party+ | C28: =IF(I10=1,"",_xlfn.IFNA(VLOOKUP(AreaSIC_SelectionHMO,List_RateTable_HMO,4,FALSE),"")) ->  | E28: =IF(I11=1,"",_xlfn.IFNA(VLOOKUP(AreaSIC_SelectionHMO,List_RateTable_HMO,7,FALSE),"")) ->  | G28: =IF(I11=1,"",_xlfn.IFNA(VLOOKUP(AreaSIC_SelectionHMO,List_RateTable_HMO,7,FALSE),"")) ->  | I28: =IF(I11=1,"",_xlfn.IFNA(VLOOKUP(AreaSIC_SelectionHMO,List_RateTable_HMO,10,FALSE),"")) ->  | L28: =IFERROR(IF(I10=1,"",IF(GroupSize_DualHMO>0,SUM(($H$13*C26)+($H$14*C27)+($H$15*C28)),0)),"") -> 0 | M28: =IFERROR(IF(I11=1,"",IF(GroupSize_DualHMO>0,SUM(($H$13*E26)+($H$14*E27)+($H$15*E28)),0)),"") -> 0 | N28: =IFERROR(IF(I11=1,"",IF(GroupSize_DualHMO>0,SUM(($H$13*G26)+($H$14*G27)+($H$15*G28)),0)),"") -> 0 | O28: =IFERROR(IF(I11=1,"",IF(GroupSize_DualHMO>0,SUM(($H$13*I26)+($H$14*I27)+($H$15*I28)),0)),"") -> 0
A29: Total Cost | C29: =IFERROR(IF(I10=1,"",SUM(L24+L28)),"") -> 0 | E29: =IFERROR(IF(I11=1,"",SUM(M24+M28)),"") -> 0 | G29: =IFERROR(IF(I11=1,"",SUM(N24+N28)),"") -> 0 | I29: =IFERROR(IF(I11=1,"",SUM(O24+O28)),"") -> 0
A31: Benefit Comparison
C33: Good | E33: Better | G33: Better Plus | I33: Best
C34: In Network | D34: Out of Network | E34: In Network | F34: Out of Network | G34: In Network | H34: Out of Network | I34: In Network | J34: Out of Network
A35: DPPO - Delta Dental | C35: Delta Dental DPPO4 | G35: Delta Dental DPPO + Premier 5
A36: Calendar Maximum (per patient) | C36: $1,000 | D36: $750 | E36: $1,500 | F36: $1,250 | G36: $1,500 | H36: $1,250 | I36: $2,000 | J36: $1,500
A37: Deductible (per patient) | C37: $50 | D37: $75 | E37: $50 | F37: $75 | G37: $50 | H37: $75 | I37: $50 | J37: $75
A38: Deductible Waived for Diagnostic & Preventive | C38: Yes | D38: No | E38: Yes | F38: No | G38: Yes | H38: No | I38: Yes
A39: Diagnostic and Preventive Services | C39: 100% | D39: 50% | E39: 100% | F39: 80% | G39: 100% | H39: 80% | I39: 100%
A40: Basic, Oral Surgery, Endodontics and Periodontics | C40: 80% | D40: 50% | E40: 80% | G40: 80% | I40: 80%
A41: Major Services | C41: 50% | E41: 50% | G41: 50% | I41: 50%
A42: Orthodontics-Children Only (Available to groups with 5+ enrolled) | C42: Not available | E42: 50% lifetime max $1,000 | G42: 50% lifetime max $1,000 | I42: 50% lifetime max $1,000
A43: DHMO - DeltaCare® USA | C43: DeltaCare® USA Plan 13B
A44: Calendar Maximum | C44: None | J44: None
A45: Deductible | C45: None | J45: None
A46: Diagnostic & Preventive | C46: Exams, x-rays, cleanings, and flouride treatments | J46: No cost
A47: Restorative | C47: Fillings (amalgan cost per surface) Crown – porcelain fused to high noble metal; full cast high noble metal | J47: No cost $355 copay
A48: Periodontics | C48: Periodontic scaling & root planing—four or more teeth per quadrant | J48: $50 copay
A49: Endodontics | C49: Root canal – anterior (excluding final restoration) Root canal – molar (excluding final restoration) | J49: $95 copay $335 copay
A50: Oral Surgery | C50: Extraction, erupted tooth or exposed root Removal of impacted tooth – completely boney | J50: $5 copay $95 copay
A51: Prosthodontics | C51: Complete denture – maxillary Maxillary partial denture – resin base | J51: $285 copay $245 copay
A52: Orthodontics | C52: Child Adult | J52: $1,900 copay $2,100 copay
C54: Good | E54: Better | G54: Better Plus | I54: Best
A55: Vision - Vision Service Plan
A56: Annual Copayment | C56: $25 exam/$25 materials | E56: $10 exam/$25 materials | G56: $10 exam/$25 materials | I56: $10 exam/$25 materials
A57: Eye Exam | C57: Covered in full* | D57: Reimbursed up to $45 | E57: Covered in full* | F57: Reimbursed up to $45 | G57: Covered in full* | H57: Reimbursed up to $45 | I57: Covered in full* | J57: Reimbursed up to $45
A58: Single-Vision Lenses | C58: Covered in full* | D58: Reimbursed up to $30 | E58: Covered in full* | F58: Reimbursed up to $30 | G58: Covered in full* | H58: Reimbursed up to $30 | I58: Covered in full* | J58: Reimbursed up to $30
A59: Bifocal Lenses | C59: Covered in full* | D59: Reimbursed up to $50 | E59: Covered in full* | F59: Reimbursed up to $50 | G59: Covered in full* | H59: Reimbursed up to $50 | I59: Covered in full* | J59: Reimbursed up to $50
A60: Trifocal Lenses | C60: Covered in full* | D60: Reimbursed up to $65 | E60: Covered in full* | F60: Reimbursed up to $65 | G60: Covered in full* | H60: Reimbursed up to $65 | I60: Covered in full* | J60: Reimbursed up to $65
A61: Frames | C61: $150 allowance | D61: Reimbursed up to $70 | E61: $150 allowance | F61: Reimbursed up to $70 | G61: $150 allowance | H61: Reimbursed up to $70 | I61: $175 allowance | J61: Reimbursed up to $70
A62: Contact Lenses | C62: $150 allowance | D62: Reimbursed up to $105 | E62: $150 allowance | F62: Reimbursed up to $105 | G62: $150 allowance | H62: Reimbursed up to $105 | I62: $175 allowance | J62: Reimbursed up to $105
A63: Vision - Frequency
A64: Eye Exam | C64: 12 months | E64: 12 months | G64: 12 months | I64: 12 months
A65: Lenses | C65: 24 months | E65: 12 months | G65: 12 months | I65: 12 months
A66: Frames | C66: 24 months | E66: 24 months | G66: 24 months | I66: 12 months
A67: Contact Lenses (in lieu of lenses and a frame) | C67: 24 months | E67: 12 months | G67: 12 months | I67: 12 months
A68: Life - UNUM
A69: Basic Group Term Life with AD&D and EAP | C69: =IF($B$16="Standard Life Amount","$15,000 policy",$B$16) -> $15,000 policy | E69: =IF($B$16="Standard Life Amount","$20,000 policy",$B$16) -> $20,000 policy | G69: =IF($B$16="Standard Life Amount","$20,000 policy",$B$16) -> $20,000 policy | I69: =IF($B$16="Standard Life Amount","$25,000 policy",$B$16) -> $25,000 policy
A70: 1 Groups of 4 may elect CoPower ONE Good, with 2 enrolled employees on the DPPO plan and a minimum of 2 on the DHMO plan. Dual Choice with CoPower ONE Better, Better Plus, and Best plans requires a minimum of 5 enrolled employees on the DPPO plan and a minimum of 2 on the DHMO plan. Bundles cannot be mixed. CoPower ONE Good DPPO will pair with CoPower ONE Good DHMO. Better Plus DPPO will pair with Better DHMO.
A71: 2 1-year rate guarantee
A72: 3 Employers with 10 or more enrolling employees have the option of substituting the standard group term life policy amounts with either a $50,000, $100,000 or $150,000 policy for an additional charge
A73: 4 Delta Dental DPPO: All dentists (in- and out-of-network) are reimbursed at the lesser of the submitted charge or the DPPO provider's contracted fee.
A74: 5 Delta Dental DPPO + Premier: DPPO dentists are reimbursed at the lesser of the submitted charge or the DPPO provider's contracted fee. Delta Dental Premier dentists are reimbursed at the lesser of the submitted charge or the Premier provider's contracted fee. Non-contracted dentists are reimbursed at the lesser of the submitted charge or the plan contract allowance.
A75: *After Copay
A77: Presented by
A79: **Enter your contact information here.** | H79: License #
A81: This document is not meant to replace a quote and does not include all exclusions, limitations or program guidelines. While the information and rates provided here are believed to be accurate as of the print date, they are subject to change without notice. For the most up-to-date information, contact CoPower. CoPower ONE plans are not available to groups currently insured with UNUM.

Sheet CoPower ONE MPB Dual Choice
I5: =IF(AND(VOL_EligibleEEs<>"Enter your group size",GroupSize_DualVOLTotal>VOL_EligibleEEs),"Total enrolling employees higher than eligible employees. Change eligible or enrolling employees.","") -> 
K6: <= Enrolled vs Eligible Check (If Enrollled > Eligible)
L7: =IF(VolPPO_Ortho="With Ortho",1,IF(DUALCHOICE_VOL="YES",IF(OR(I5<>"",I17<>""),1,0),IF(OR(I10<>"",I5<>""),1,0))) -> 0 | M7: PPO W/O Ortho
L8: =IF(VolPPO_Ortho="Without Ortho",1,IF(DUALCHOICE_VOL="YES",IF(OR(I5<>"",I17<>"",I11<>""),1,0),IF(OR(E24="PPO With Ortho (Not Available)",I11<>"",I10<>"",I5<>""),1,0))) -> 1 | M8: PPO W Ortho
A9: Company Information | L9: =IF(DUALCHOICE_VOL="YES",IF(OR(I5<>"",I17<>"",I13<>""),1,0),IF(OR(I13<>"",I5<>""),1,0)) -> 0 | M9: DHMO MPB
A10: Company Name: | I10: =IF(DUALCHOICE_VOL="YES","",IF(VOL_EligibleEEs="Enter your group size","",IF(M10="1","","CoPower ONE MPB DPPO requires a minimum of 5 enrolled."))) ->  | L10: =IF(GroupSize_DualVOLPPO<5,"0","1") -> 0 | M10: =IF(GroupSize_DualVOLPPO<5,"0","1") -> 0
A11: Effective Date: | B11: Select your effective date | I11: =IF(VOL_EligibleEEs="Enter your group size","",IF(GroupSize_DualVOLPPO>24,"","CoPower ONE MPB DPPO with Ortho requires a minimum of 25 enrolled.")) ->  | L11: =IF(GroupSize_DualVOLHMO<2,"0","1") -> 0 | M11: =IF(GroupSize_DualVOLHMO<2,"0","1") -> 0
A12: Employer Contribution for Employees | B12: Less than 75% | E12: =SUM(GroupSize_DualVOLPPO+GroupSize_DualVOLHMO) -> 0 | F12: Enrolling Employees | L12: =IF(SUM(L10+L11)>=2,"Yes","No") -> No | M12: =IF(SUM(M10+M11)>=1,"Yes","No") -> No
A13: Eligible Employees | B13: Enter your group size | F13: DPPO | G13: DHMO | I13: =IF(VOL_EligibleEEs<>"Enter your group size",IF(M11="1","","CoPower ONE MPB DHMO requires a minimum of 2 enrolled."),"") ->  | L13: =IF(OR(I17<>"",I5<>""),1,0) -> 0 | M13: Dual Choice MPB
A14: DPPO Region | B14: Select your NY DPPO Region | D14: Number of Single | F14: 0 | G14: 0 | K14: <= DHMO Check (Minimum 2 Enrolled)
A15: DHMO Region | B15: Select your NY DHMO Region | D15: Number of Two Party | F15: 0 | G15: 0
A16: SIC Level | B16: Select your SIC Level | D16: Number of Three Party+ | F16: 0 | G16: 0
A17: Dual Choice? (Requires minimum 10+ enrollees) | B17: No | D17: Total Enrolling Employees | F17: =SUM(F14+F15+F16) -> 0 | G17: =SUM(G14+G15+G16) -> 0 | I17: =IF(OR(DUALCHOICE_VOL="Select Dual Choice (Required)",DUALCHOICE_VOL="No",VOL_EligibleEEs="Enter your group size"),"",IF(AND(GroupSize_DualVOLTotal>9,M12="Yes",GroupSize_DualVOLPPO>4,GroupSize_DualVOLHMO>1),"","CoPower ONE MPB Dual Choice requires minimum of 10 enrolled, with minimum of 5 enrolled in one plan and remainder in the other.")) ->  | K17: <= Dual Choice: 10 total enrolled, 5 on one plan check
A18: Ortho? (Requires minimum 25+ enrollees on DPPO) | B18: Without Ortho
A21: Cost Comparison - Monthly Rates
A22: =IF(OR(VOL_EligibleEEs="Enter your group size",DUALCHOICE_VOL="Select Dual Choice (Required)",VolPPO_Ortho="Select Ortho (Required)"),"",CONCATENATE(Region_VOL_PPO,SIC_VOL,"WithOrtho")) ->  | C22: =CONCATENATE(Region_VOL_PPO,SIC_VOL,"WithOrtho") -> Select your NY DPPO RegionSelect your SIC LevelWithOrtho
A24: =IF(OR(VOL_EligibleEEs="Enter your group size",DUALCHOICE_VOL="Select Dual Choice (Required)",VolPPO_Ortho="Select Ortho (Required)"),"",CONCATENATE(Region_VOL_PPO,SIC_VOL,"WithoutOrtho")) ->  | B24: =IF(OR(VOL_EligibleEEs="Enter your group size",DUALCHOICE_VOL="Select Dual Choice (Required)",VolPPO_Ortho="Select Ortho (Required)"),"",Region_VOL_HMO) ->  | C24: CoPower ONE MPB
A25: DPPO MPB Enrollment | C25: DPPO Without Ortho | F25: =IF(GroupSize_DualVOLPPO<25,"DPPO With Ortho (Not Available)",IF(AND(GroupSize_DualVOLPPO>24,VolPPO_Ortho="Without Ortho"),"DPPO With Ortho (Not Selected)","DPPO With Ortho")) -> DPPO With Ortho (Not Available)
A26: Single | C26: =IF(L7=1,"",_xlfn.IFNA(VLOOKUP(AreaSIC_SelectionVOLPPO,List_RateTable_VOLPPO,2,FALSE),"")) ->  | F26: =IF(L8=1,"",_xlfn.IFNA(VLOOKUP(A22,List_RateTable_VOLPPO,2,FALSE),"")) -> 
A27: Two Party | C27: =IF(L7=1,"",_xlfn.IFNA(VLOOKUP(AreaSIC_SelectionVOLPPO,List_RateTable_VOLPPO,3,FALSE),"")) ->  | F27: =IF(L8=1,"",_xlfn.IFNA(VLOOKUP(A22,List_RateTable_VOLPPO,3,FALSE),"")) -> 
A28: Three Party+ | C28: =IF(L7=1,"",_xlfn.IFNA(VLOOKUP(AreaSIC_SelectionVOLPPO,List_RateTable_VOLPPO,4,FALSE),"")) ->  | F28: =IF(L8=1,"",_xlfn.IFNA(VLOOKUP(A22,List_RateTable_VOLPPO,4,FALSE),"")) -> 
A29: Total Cost-DPPO Only | C29: =IF(C26="","",IFERROR(IF(L7=1,"",SUM(L29)),"")) ->  | F29: =IF(F26="","",IFERROR(IF(L8=1,"",SUM(M29)),"")) ->  | L29: =IFERROR(IF(L7=1,"",IF(GroupSize_DualVOLPPO>0,SUM(($F$14*C26)+($F$15*C27)+($F$16*C28)),0)),"") -> 0 | M29: =IFERROR(IF(L8=1,"",IF(GroupSize_DualVOLPPO>0,SUM(($F$14*F26)+($F$15*F27)+($F$16*F28)),0)),"") -> 
A31: DHMO MPB Enrollment
A32: Single | C32: =IF(OR(E24="PPO With Ortho",VolPPO_Ortho="With Ortho"),"",IF(DUALCHOICE_VOL="YES",IF(OR(L9=1,L13=1),"",_xlfn.IFNA(VLOOKUP(AreaSIC_SelectionVOLHMO,List_RateTable_VOLHMO,2,FALSE),"")),IF(L9=1,"",_xlfn.IFNA(VLOOKUP(AreaSIC_SelectionVOLHMO,List_RateTable_VOLHMO,2,FALSE),"")))) ->  | F32: =IF(F25="DPPO With Ortho (Not Selected)","",IF(OR(F25="DPPO With Ortho (Not Available)",L9=1),"",_xlfn.IFNA(VLOOKUP(AreaSIC_SelectionVOLHMO,List_RateTable_VOLHMO,2,FALSE),""))) -> 
A33: Two Party | C33: =IF(OR(E24="PPO With Ortho",VolPPO_Ortho="With Ortho"),"",IF(DUALCHOICE_VOL="YES",IF(OR(L9=1,L13=1),"",_xlfn.IFNA(VLOOKUP(AreaSIC_SelectionVOLHMO,List_RateTable_VOLHMO,3,FALSE),"")),IF(L9=1,"",_xlfn.IFNA(VLOOKUP(AreaSIC_SelectionVOLHMO,List_RateTable_VOLHMO,3,FALSE),"")))) ->  | F33: =IF(F25="DPPO With Ortho (Not Selected)","",IF(OR(F25="DPPO With Ortho (Not Available)",L9=1),"",_xlfn.IFNA(VLOOKUP(AreaSIC_SelectionVOLHMO,List_RateTable_VOLHMO,3,FALSE),""))) -> 
A34: Three Party+ | C34: =IF(OR(E24="PPO With Ortho",VolPPO_Ortho="With Ortho"),"",IF(DUALCHOICE_VOL="YES",IF(OR(L9=1,L13=1),"",_xlfn.IFNA(VLOOKUP(AreaSIC_SelectionVOLHMO,List_RateTable_VOLHMO,4,FALSE),"")),IF(L9=1,"",_xlfn.IFNA(VLOOKUP(AreaSIC_SelectionVOLHMO,List_RateTable_VOLHMO,4,FALSE),"")))) ->  | F34: =IF(F25="DPPO With Ortho (Not Selected)","",IF(OR(F25="DPPO With Ortho (Not Available)",L9=1),"",_xlfn.IFNA(VLOOKUP(AreaSIC_SelectionVOLHMO,List_RateTable_VOLHMO,4,FALSE),""))) -> 
A35: Total Cost-DHMO Only | C35: =IF(C32="","",IFERROR(IF(L9=1,"",SUM(L35)),"")) ->  | F35: =IF(F32="","",IFERROR(IF(OR(F25="With Ortho (Not Available)",L9=1),"",SUM(M35)),"")) ->  | L35: =IFERROR(IF(L9=1,"",IF(GroupSize_DualVOLHMO>0,SUM(($G$14*C32)+($G$15*C33)+($G$16*C34)),0)),"") -> 0 | M35: =IFERROR(IF(L9=1,"",IF(GroupSize_DualVOLHMO>0,SUM(($G$14*F32)+($G$15*F33)+($G$16*F34)),0)),"") -> 0
A37: Total Cost-Dual Choice MPB | C37: =IF((VOL_EligibleEEs<GroupSize_DualVOLTotal),"",IF(B17="Select Dual Choice (Required)","Select Dual Choice Above",IF(DUALCHOICE_VOL="No","No Dual Choice",IF(OR(GroupSize_DualVOLPPO=0,L13=1),"Not Eligible for Dual Choice",IFERROR(SUM(C35+C29),""))))) -> No Dual Choice | F37: =IF((VOL_EligibleEEs<GroupSize_DualVOLTotal),"",IF(B17="Select Dual Choice (Required)","Select Dual Choice Above",IF(DUALCHOICE_VOL="No","No Dual Choice",IF(OR(GroupSize_DualVOLPPO=0,L13=1),"Not Eligible for Dual Choice",IFERROR(SUM(F35+F29),""))))) -> No Dual Choice
A39: Benefit Comparison
C41: CoPower ONE MPB PPO
C42: DPPO Dentists | F42: Non-DPPO Dentists
A43: DPPO MPB - Delta Dental | C43: Delta Dental DPPO3
A44: Calendar Year Max (per patient) | C44: $1,500 | F44: $1,250
A45: Calendar Year Deductible (per patient) | C45: $50 | F45: $75
A46: Deductible Waived for Diagnostic & Preventive | C46: Yes | F46: No
A47: Diagnostic and Preventive Services | B47: First 12 Months | C47: 100% | F47: 80%
A48: Basic Services (Sealants, Simple Restorations, & Simple Extractions) | C48: 80%
A49: Oral Surgery, Endodontics and Periodontics | B49: Second 12 Months | C49: 50%
A50: Major Services | C50: 50%
A51: Orthodontics-Children Only (Available to groups with 25+ enrolled) | C51: =IF(VolPPO_Ortho="Select Ortho (Required)","Not Available",IF(AND(GroupSize_DualVOLTotal>24,VolPPO_Ortho="Without Ortho"),"None (No Ortho)",IF(AND(GroupSize_DualVOLTotal<25,VolPPO_Ortho="Without Ortho"),"Not Available","50% lifetime max $1,000"))) -> Not Available
C53: CoPower ONE MPB DHMO
A54: DHMO MPB - DeltaCare® USA | C54: DeltaCare® USA Plan 13B
A55: Calendar Maximum | C55: None | G55: None
A56: Deductible | C56: None | G56: None
A57: Diagnostic & Preventive | C57: Exams, x-rays, cleanings, and flouride treatments | G57: No cost
A58: Restorative | C58: Fillings (amalgan cost per surface) Crown – porcelain fused to high noble metal; full cast high noble metal | G58: No cost $355 copay
A59: Periodontics | C59: Periodontic scaling & root planing—four or more teeth per quadrant | G59: $50 copay
A60: Endodontics | C60: Root canal – anterior (excluding final restoration) Root canal – molar (excluding final restoration) | G60: $95 copay $335 copay
A61: Oral Surgery | C61: Extraction, erupted tooth or exposed root Removal of impacted tooth – completely boney | G61: $5 copay $95 copay
A62: Prosthodontics | C62: Complete denture – maxillary Maxillary partial denture – resin base | G62: $285 copay $245 copay
A63: Orthodontics | C63: Child Adult | G63: $1,900 copay $2,100 copay
C66: CoPower ONE MPB
A67: Vision - Vision Service Plan | C67: In Network | F67: Out of Network
A68: Annual Copayment | C68: $10 exam / $25 materials
A69: Eye Exam | C69: Covered in full* | F69: Reimbursed up to $45
A70: Single-Vision Lenses | C70: Covered in full* | F70: Reimbursed up to $30
A71: Bifocal Lenses | C71: Covered in full* | F71: Reimbursed up to $50
A72: Trifocal Lenses | C72: Covered in full* | F72: Reimbursed up to $65
A73: Frames | C73: $200 allowance | F73: Reimbursed up to $70
A74: Contact Lenses | C74: $200 allowance | F74: Reimbursed up to $105
A75: Vision - Frequency
A76: Eye Exam | C76: 12 months
A77: Lenses | C77: 12 months
A78: Frames | C78: 12 months
A79: Contact Lenses (in lieu of lenses and a frame) | C79: 12 months
A80: Life - UNUM
A81: Basic Group Term Life with AD&D and EAP | C81: N/A
A83: 1 Dual choice Minimum Participation Base (MPB) Delta Dental DPPO and MPB DeltaCare® USA DHMO available for groups of 10+ enrolling - minimum of 5 enrolled in one plan and remainder in the other
A84: 2 1-year rate guarantee
A85: 3 Delta Dental DPPO: All dentists (in- and out-of-network) are reimbursed at the lesser of the submitted charge or the DPPO provider's contracted fee.
A86: * After Copay
A88: Presented by
A90: **Enter your contact information here.** | F90: License #
A92: This document is not meant to replace a quote and does not include all exclusions, limitations or program guidelines. While the information and rates provided here are believed to be accurate as of the print date, they are subject to change without notice. For the most up-to-date information, contact CoPower. CoPower ONE plans are not available to groups currently insured with UNUM.

Sheet Lists (hidden)
A1: List_Area_PPO | B1: List_SIC | D1: List_RateTable_PPO | E1: GOOD | H1: BETTER | K1: BETTER PLUS | N1: BEST
A2: Select your NY DPPO Region | B2: Select your SIC Level | D2: Region 31Standard Life Amount5-9 | E2: 33.5 | F2: 59.5 | G2: 82.5 | H2: 42 | I2: 75 | J2: 108 | K2: 47 | L2: 86.5 | M2: 124 | N2: 55 | O2: 99 | P2: 142.5
A3: Region 1 | B3: 1 | D3: Region 32Standard Life Amount5-9 | E3: 36 | F3: 66 | G3: 91.5 | H3: 46 | I3: 83.5 | J3: 120.5 | K3: 51.5 | L3: 96 | M3: 138.5 | N3: 59.5 | O3: 110.5 | P3: 159
A4: Region 2 | B4: 2 | D4: Region 21Standard Life Amount5-9 | E4: 42 | F4: 76.5 | G4: 107.5 | H4: 51.5 | I4: 98 | J4: 141.5 | K4: 59.5 | L4: 113.5 | M4: 163.5 | N4: 68 | O4: 129 | P4: 187
A5: Region 3 | D5: Region 22Standard Life Amount5-9 | E5: 46 | F5: 86 | G5: 120 | H5: 57.5 | I5: 109.5 | J5: 158 | K5: 66 | L5: 126.5 | M5: 183.5 | N5: 76 | O5: 144 | P5: 210
D6: Region 11Standard Life Amount5-9 | E6: 44 | F6: 81.5 | G6: 113.5 | H6: 54.5 | I6: 102.5 | J6: 149 | K6: 60.5 | L6: 115 | M6: 166.5 | N6: 69 | O6: 131 | P6: 189.5
D7: Region 12Standard Life Amount5-9 | E7: 48.5 | F7: 91 | G7: 127 | H7: 60.5 | I7: 115 | J7: 167.5 | K7: 67 | L7: 129.5 | M7: 187.5 | N7: 77 | O7: 147 | P7: 214
D9: Region 31Standard Life Amount10-49 | E9: 33.5 | F9: 59.5 | G9: 82.5 | H9: 42 | I9: 75 | J9: 108 | K9: 47 | L9: 86.5 | M9: 124 | N9: 55 | O9: 99 | P9: 142.5
D10: Region 32Standard Life Amount10-49 | E10: 36 | F10: 66 | G10: 91.5 | H10: 46 | I10: 83.5 | J10: 120.5 | K10: 51.5 | L10: 96 | M10: 138.5 | N10: 59.5 | O10: 110.5 | P10: 159
D11: Region 21Standard Life Amount10-49 | E11: 42 | F11: 76.5 | G11: 107.5 | H11: 51.5 | I11: 98 | J11: 141.5 | K11: 59.5 | L11: 113.5 | M11: 163.5 | N11: 68 | O11: 129 | P11: 187
A12: List_EffDate | B12: List_LifeAmounts10PlusLives | D12: Region 22Standard Life Amount10-49 | E12: 46 | F12: 86 | G12: 120 | H12: 57.5 | I12: 109.5 | J12: 158 | K12: 66 | L12: 126.5 | M12: 183.5 | N12: 76 | O12: 144 | P12: 210
A13: Select your effective date | B13: Standard Life Amount | D13: Region 11Standard Life Amount10-49 | E13: 44 | F13: 81.5 | G13: 113.5 | H13: 54.5 | I13: 102.5 | J13: 149 | K13: 60.5 | L13: 115 | M13: 166.5 | N13: 69 | O13: 131 | P13: 189.5
A14: 2024-01-01 | B14: Enhanced Life $35,000 | D14: Region 12Standard Life Amount10-49 | E14: 48.5 | F14: 91 | G14: 127 | H14: 60.5 | I14: 115 | J14: 167.5 | K14: 67 | L14: 129.5 | M14: 187.5 | N14: 77 | O14: 147 | P14: 214
A15: 2/1/2024 | B15: Enhanced Life $50,000
A16: 3/1/2024 | B16: Enhanced Life $100,000 | D16: Region 31Standard Life Amount50-99 | E16: 33.5 | F16: 59.5 | G16: 82.5 | H16: 42 | I16: 75 | J16: 108 | K16: 47 | L16: 86.5 | M16: 124 | N16: 55 | O16: 99 | P16: 142.5
A17: 4/1/2024 | B17: Enhanced Life $150,000 | D17: Region 32Standard Life Amount50-99 | E17: 36 | F17: 66 | G17: 91.5 | H17: 46 | I17: 83.5 | J17: 120.5 | K17: 51.5 | L17: 96 | M17: 138.5 | N17: 59.5 | O17: 110.5 | P17: 159
A18: 5/1/2024 | D18: Region 21Standard Life Amount50-99 | E18: 42 | F18: 76.5 | G18: 107.5 | H18: 51.5 | I18: 98 | J18: 141.5 | K18: 59.5 | L18: 113.5 | M18: 163.5 | N18: 68 | O18: 129 | P18: 187
A19: 6/1/2024 | D19: Region 22Standard Life Amount50-99 | E19: 46 | F19: 86 | G19: 120 | H19: 57.5 | I19: 109.5 | J19: 158 | K19: 66 | L19: 126.5 | M19: 183.5 | N19: 76 | O19: 144 | P19: 210
A20: 7/1/2024 | B20: List_LifeAmounts<10Lives | D20: Region 11Standard Life Amount50-99 | E20: 44 | F20: 81.5 | G20: 113.5 | H20: 54.5 | I20: 102.5 | J20: 149 | K20: 60.5 | L20: 115 | M20: 166.5 | N20: 69 | O20: 131 | P20: 189.5
A21: 8/1/2024 | B21: Standard Life Amount | D21: Region 12Standard Life Amount50-99 | E21: 48.5 | F21: 91 | G21: 127 | H21: 60.5 | I21: 115 | J21: 167.5 | K21: 67 | L21: 129.5 | M21: 187.5 | N21: 77 | O21: 147 | P21: 214
A22: 9/1/2024 | B22: Enhanced Life $35,000
A23: 10/1/2024 | D23: Region 31Standard Life Amount2-4 | E23: 35 | F23: 63 | G23: 88.5 | H23: X | I23: X | J23: X | K23: X | L23: X | M23: X | N23: X | O23: X | P23: X
A24: 11/1/2024 | D24: Region 32Standard Life Amount2-4 | E24: 39 | F24: 71 | G24: 99 | H24: X | I24: X | J24: X | K24: X | L24: X | M24: X | N24: X | O24: X | P24: X
A25: 12/1/2024 | D25: Region 21Standard Life Amount2-4 | E25: 45 | F25: 83.5 | G25: 116 | H25: X | I25: X | J25: X | K25: X | L25: X | M25: X | N25: X | O25: X | P25: X
D26: Region 22Standard Life Amount2-4 | E26: 49.5 | F26: 94 | G26: 129.5 | H26: X | I26: X | J26: X | K26: X | L26: X | M26: X | N26: X | O26: X | P26: X
D27: Region 11Standard Life Amount2-4 | E27: 47 | F27: 88 | G27: 122 | H27: X | I27: X | J27: X | K27: X | L27: X | M27: X | N27: X | O27: X | P27: X
D28: Region 12Standard Life Amount2-4 | E28: 52.5 | F28: 98.5 | G28: 137.5 | H28: X | I28: X | J28: X | K28: X | L28: X | M28: X | N28: X | O28: X | P28: X
A29: List_Area_HMO | B29: List_EligibleEEs
A30: Select your NY DHMO Region | B30: Select your group size | D30: Region 31Enhanced Life $35,0002-4 | E30: =SUM(E23+$E$119) -> 43.6 | F30: =SUM(F23+$E$119) -> 71.6 | G30: =SUM(G23+$E$119) -> 97.1 | H30: X | I30: X | J30: X | K30: X | L30: X | M30: X | N30: X | O30: X | P30: X
A31: Region 1 | B31: 2-9 Employees | D31: Region 32Enhanced Life $35,0002-4 | E31: =SUM(E24+$E$119) -> 47.6 | F31: =SUM(F24+$E$119) -> 79.6 | G31: =SUM(G24+$E$119) -> 107.6 | H31: X | I31: X | J31: X | K31: X | L31: X | M31: X | N31: X | O31: X | P31: X
A32: Region 2 | B32: 10-99 Employees | D32: Region 21Enhanced Life $35,0002-4 | E32: =SUM(E25+$E$119) -> 53.6 | F32: =SUM(F25+$E$119) -> 92.1 | G32: =SUM(G25+$E$119) -> 124.6 | H32: X | I32: X | J32: X | K32: X | L32: X | M32: X | N32: X | O32: X | P32: X
D33: Region 22Enhanced Life $35,0002-4 | E33: =SUM(E26+$E$119) -> 58.1 | F33: =SUM(F26+$E$119) -> 102.6 | G33: =SUM(G26+$E$119) -> 138.1 | H33: X | I33: X | J33: X | K33: X | L33: X | M33: X | N33: X | O33: X | P33: X
D34: Region 11Enhanced Life $35,0002-4 | E34: =SUM(E27+$E$119) -> 55.6 | F34: =SUM(F27+$E$119) -> 96.6 | G34: =SUM(G27+$E$119) -> 130.6 | H34: X | I34: X | J34: X | K34: X | L34: X | M34: X | N34: X | O34: X | P34: X
A35: <51 Eligible | B35: List_ERContributiontoEE | D35: Region 12Enhanced Life $35,0002-4 | E35: =SUM(E28+$E$119) -> 61.1 | F35: =SUM(F28+$E$119) -> 107.1 | G35: =SUM(G28+$E$119) -> 146.1 | H35: X | I35: X | J35: X | K35: X | L35: X | M35: X | N35: X | O35: X | P35: X
B36: Select employer contribution for employees
A37: (Minimum 75 % EE Participation Required) | B37: 51-99% (51+ Eligible) | D37: Region 31Enhanced Life $35,0005-9 | E37: =SUM(E2+$E$119) -> 42.1 | F37: =SUM(F2+$E$119) -> 68.1 | G37: =SUM(G2+$E$119) -> 91.1 | H37: =SUM(H2+$H$119) -> 48.45 | I37: =SUM(I2+$H$119) -> 81.45 | J37: =SUM(J2+$H$119) -> 114.45 | K37: =SUM(K2+$H$119) -> 53.45 | L37: =SUM(L2+$H$119) -> 92.95 | M37: =SUM(M2+$H$119) -> 130.45 | N37: =SUM(N2+$K$119) -> 59.3 | O37: =SUM(O2+$K$119) -> 103.3 | P37: =SUM(P2+$K$119) -> 146.8
A38: (100 % EE Participation Required) | B38: 75-99% (2-50 Eligible) | D38: Region 32Enhanced Life $35,0005-9 | E38: =SUM(E3+$E$119) -> 44.6 | F38: =SUM(F3+$E$119) -> 74.6 | G38: =SUM(G3+$E$119) -> 100.1 | H38: =SUM(H3+$H$119) -> 52.45 | I38: =SUM(I3+$H$119) -> 89.95 | J38: =SUM(J3+$H$119) -> 126.95 | K38: =SUM(K3+$H$119) -> 57.95 | L38: =SUM(L3+$H$119) -> 102.45 | M38: =SUM(M3+$H$119) -> 144.95 | N38: =SUM(N3+$K$119) -> 63.8 | O38: =SUM(O3+$K$119) -> 114.8 | P38: =SUM(P3+$K$119) -> 163.3
B39: 1 | D39: Region 21Enhanced Life $35,0005-9 | E39: =SUM(E4+$E$119) -> 50.6 | F39: =SUM(F4+$E$119) -> 85.1 | G39: =SUM(G4+$E$119) -> 116.1 | H39: =SUM(H4+$H$119) -> 57.95 | I39: =SUM(I4+$H$119) -> 104.45 | J39: =SUM(J4+$H$119) -> 147.95 | K39: =SUM(K4+$H$119) -> 65.95 | L39: =SUM(L4+$H$119) -> 119.95 | M39: =SUM(M4+$H$119) -> 169.95 | N39: =SUM(N4+$K$119) -> 72.3 | O39: =SUM(O4+$K$119) -> 133.3 | P39: =SUM(P4+$K$119) -> 191.3
D40: Region 22Enhanced Life $35,0005-9 | E40: =SUM(E5+$E$119) -> 54.6 | F40: =SUM(F5+$E$119) -> 94.6 | G40: =SUM(G5+$E$119) -> 128.6 | H40: =SUM(H5+$H$119) -> 63.95 | I40: =SUM(I5+$H$119) -> 115.95 | J40: =SUM(J5+$H$119) -> 164.45 | K40: =SUM(K5+$H$119) -> 72.45 | L40: =SUM(L5+$H$119) -> 132.95 | M40: =SUM(M5+$H$119) -> 189.95 | N40: =SUM(N5+$K$119) -> 80.3 | O40: =SUM(O5+$K$119) -> 148.3 | P40: =SUM(P5+$K$119) -> 214.3
D41: Region 11Enhanced Life $35,0005-9 | E41: =SUM(E6+$E$119) -> 52.6 | F41: =SUM(F6+$E$119) -> 90.1 | G41: =SUM(G6+$E$119) -> 122.1 | H41: =SUM(H6+$H$119) -> 60.95 | I41: =SUM(I6+$H$119) -> 108.95 | J41: =SUM(J6+$H$119) -> 155.45 | K41: =SUM(K6+$H$119) -> 66.95 | L41: =SUM(L6+$H$119) -> 121.45 | M41: =SUM(M6+$H$119) -> 172.95 | N41: =SUM(N6+$K$119) -> 73.3 | O41: =SUM(O6+$K$119) -> 135.3 | P41: =SUM(P6+$K$119) -> 193.8
D42: Region 12Enhanced Life $35,0005-9 | E42: =SUM(E7+$E$119) -> 57.1 | F42: =SUM(F7+$E$119) -> 99.6 | G42: =SUM(G7+$E$119) -> 135.6 | H42: =SUM(H7+$H$119) -> 66.95 | I42: =SUM(I7+$H$119) -> 121.45 | J42: =SUM(J7+$H$119) -> 173.95 | K42: =SUM(K7+$H$119) -> 73.45 | L42: =SUM(L7+$H$119) -> 135.95 | M42: =SUM(M7+$H$119) -> 193.95 | N42: =SUM(N7+$K$119) -> 81.3 | O42: =SUM(O7+$K$119) -> 151.3 | P42: =SUM(P7+$K$119) -> 218.3
D44: Region 31Enhanced Life $35,00010-49 | E44: =SUM(E9+$E$120) -> 39.1 | F44: =SUM(F9+$E$120) -> 65.1 | G44: =SUM(G9+$E$120) -> 88.1 | H44: =SUM(H9+$H$120) -> 46.2 | I44: =SUM(I9+$H$120) -> 79.2 | J44: =SUM(J9+$H$120) -> 112.2 | K44: =SUM(K9+$H$120) -> 51.2 | L44: =SUM(L9+$H$120) -> 90.7 | M44: =SUM(M9+$H$120) -> 128.2 | N44: =SUM(N9+$K$120) -> 57.8 | O44: =SUM(O9+$K$120) -> 101.8 | P44: =SUM(P9+$K$120) -> 145.3
D45: Region 32Enhanced Life $35,00010-49 | E45: =SUM(E10+$E$120) -> 41.6 | F45: =SUM(F10+$E$120) -> 71.6 | G45: =SUM(G10+$E$120) -> 97.1 | H45: =SUM(H10+$H$120) -> 50.2 | I45: =SUM(I10+$H$120) -> 87.7 | J45: =SUM(J10+$H$120) -> 124.7 | K45: =SUM(K10+$H$120) -> 55.7 | L45: =SUM(L10+$H$120) -> 100.2 | M45: =SUM(M10+$H$120) -> 142.7 | N45: =SUM(N10+$K$120) -> 62.3 | O45: =SUM(O10+$K$120) -> 113.3 | P45: =SUM(P10+$K$120) -> 161.8
A46: List_VolDualChoiceSelection | B46: List_VolOrtho | D46: Region 21Enhanced Life $35,00010-49 | E46: =SUM(E11+$E$120) -> 47.6 | F46: =SUM(F11+$E$120) -> 82.1 | G46: =SUM(G11+$E$120) -> 113.1 | H46: =SUM(H11+$H$120) -> 55.7 | I46: =SUM(I11+$H$120) -> 102.2 | J46: =SUM(J11+$H$120) -> 145.7 | K46: =SUM(K11+$H$120) -> 63.7 | L46: =SUM(L11+$H$120) -> 117.7 | M46: =SUM(M11+$H$120) -> 167.7 | N46: =SUM(N11+$K$120) -> 70.8 | O46: =SUM(O11+$K$120) -> 131.8 | P46: =SUM(P11+$K$120) -> 189.8
A47: Select Dual Choice (Required) | B47: Select Ortho (Required) | D47: Region 22Enhanced Life $35,00010-49 | E47: =SUM(E12+$E$120) -> 51.6 | F47: =SUM(F12+$E$120) -> 91.6 | G47: =SUM(G12+$E$120) -> 125.6 | H47: =SUM(H12+$H$120) -> 61.7 | I47: =SUM(I12+$H$120) -> 113.7 | J47: =SUM(J12+$H$120) -> 162.2 | K47: =SUM(K12+$H$120) -> 70.2 | L47: =SUM(L12+$H$120) -> 130.7 | M47: =SUM(M12+$H$120) -> 187.7 | N47: =SUM(N12+$K$120) -> 78.8 | O47: =SUM(O12+$K$120) -> 146.8 | P47: =SUM(P12+$K$120) -> 212.8
A48: Yes | B48: Without Ortho | D48: Region 11Enhanced Life $35,00010-49 | E48: =SUM(E13+$E$120) -> 49.6 | F48: =SUM(F13+$E$120) -> 87.1 | G48: =SUM(G13+$E$120) -> 119.1 | H48: =SUM(H13+$H$120) -> 58.7 | I48: =SUM(I13+$H$120) -> 106.7 | J48: =SUM(J13+$H$120) -> 153.2 | K48: =SUM(K13+$H$120) -> 64.7 | L48: =SUM(L13+$H$120) -> 119.2 | M48: =SUM(M13+$H$120) -> 170.7 | N48: =SUM(N13+$K$120) -> 71.8 | O48: =SUM(O13+$K$120) -> 133.8 | P48: =SUM(P13+$K$120) -> 192.3
A49: No | B49: With Ortho | D49: Region 12Enhanced Life $35,00010-49 | E49: =SUM(E14+$E$120) -> 54.1 | F49: =SUM(F14+$E$120) -> 96.6 | G49: =SUM(G14+$E$120) -> 132.6 | H49: =SUM(H14+$H$120) -> 64.7 | I49: =SUM(I14+$H$120) -> 119.2 | J49: =SUM(J14+$H$120) -> 171.7 | K49: =SUM(K14+$H$120) -> 71.2 | L49: =SUM(L14+$H$120) -> 133.7 | M49: =SUM(M14+$H$120) -> 191.7 | N49: =SUM(N14+$K$120) -> 79.8 | O49: =SUM(O14+$K$120) -> 149.8 | P49: =SUM(P14+$K$120) -> 216.8
D51: Region 31Enhanced Life $50,00010-49 | E51: =SUM(E9+$E$121) -> 43.3 | F51: =SUM(F9+$E$121) -> 69.3 | G51: =SUM(G9+$E$121) -> 92.3 | H51: =SUM(H9+$H$121) -> 50.4 | I51: =SUM(I9+$H$121) -> 83.4 | J51: =SUM(J9+$H$121) -> 116.4 | K51: =SUM(K9+$H$121) -> 55.4 | L51: =SUM(L9+$H$121) -> 94.9 | M51: =SUM(M9+$H$121) -> 132.4 | N51: =SUM(N9+$K$121) -> 62 | O51: =SUM(O9+$K$121) -> 106 | P51: =SUM(P9+$K$121) -> 149.5
D52: Region 32Enhanced Life $50,00010-49 | E52: =SUM(E10+$E$121) -> 45.8 | F52: =SUM(F10+$E$121) -> 75.8 | G52: =SUM(G10+$E$121) -> 101.3 | H52: =SUM(H10+$H$121) -> 54.4 | I52: =SUM(I10+$H$121) -> 91.9 | J52: =SUM(J10+$H$121) -> 128.9 | K52: =SUM(K10+$H$121) -> 59.9 | L52: =SUM(L10+$H$121) -> 104.4 | M52: =SUM(M10+$H$121) -> 146.9 | N52: =SUM(N10+$K$121) -> 66.5 | O52: =SUM(O10+$K$121) -> 117.5 | P52: =SUM(P10+$K$121) -> 166
D53: Region 21Enhanced Life $50,00010-49 | E53: =SUM(E11+$E$121) -> 51.8 | F53: =SUM(F11+$E$121) -> 86.3 | G53: =SUM(G11+$E$121) -> 117.3 | H53: =SUM(H11+$H$121) -> 59.9 | I53: =SUM(I11+$H$121) -> 106.4 | J53: =SUM(J11+$H$121) -> 149.9 | K53: =SUM(K11+$H$121) -> 67.9 | L53: =SUM(L11+$H$121) -> 121.9 | M53: =SUM(M11+$H$121) -> 171.9 | N53: =SUM(N11+$K$121) -> 75 | O53: =SUM(O11+$K$121) -> 136 | P53: =SUM(P11+$K$121) -> 194
D54: Region 22Enhanced Life $50,00010-49 | E54: =SUM(E12+$E$121) -> 55.8 | F54: =SUM(F12+$E$121) -> 95.8 | G54: =SUM(G12+$E$121) -> 129.8 | H54: =SUM(H12+$H$121) -> 65.9 | I54: =SUM(I12+$H$121) -> 117.9 | J54: =SUM(J12+$H$121) -> 166.4 | K54: =SUM(K12+$H$121) -> 74.4 | L54: =SUM(L12+$H$121) -> 134.9 | M54: =SUM(M12+$H$121) -> 191.9 | N54: =SUM(N12+$K$121) -> 83 | O54: =SUM(O12+$K$121) -> 151 | P54: =SUM(P12+$K$121) -> 217
D55: Region 11Enhanced Life $50,00010-49 | E55: =SUM(E13+$E$121) -> 53.8 | F55: =SUM(F13+$E$121) -> 91.3 | G55: =SUM(G13+$E$121) -> 123.3 | H55: =SUM(H13+$H$121) -> 62.9 | I55: =SUM(I13+$H$121) -> 110.9 | J55: =SUM(J13+$H$121) -> 157.4 | K55: =SUM(K13+$H$121) -> 68.9 | L55: =SUM(L13+$H$121) -> 123.4 | M55: =SUM(M13+$H$121) -> 174.9 | N55: =SUM(N13+$K$121) -> 76 | O55: =SUM(O13+$K$121) -> 138 | P55: =SUM(P13+$K$121) -> 196.5
D56: Region 12Enhanced Life $50,00010-49 | E56: =SUM(E14+$E$121) -> 58.3 | F56: =SUM(F14+$E$121) -> 100.8 | G56: =SUM(G14+$E$121) -> 136.8 | H56: =SUM(H14+$H$121) -> 68.9 | I56: =SUM(I14+$H$121) -> 123.4 | J56: =SUM(J14+$H$121) -> 175.9 | K56: =SUM(K14+$H$121) -> 75.4 | L56: =SUM(L14+$H$121) -> 137.9 | M56: =SUM(M14+$H$121) -> 195.9 | N56: =SUM(N14+$K$121) -> 84 | O56: =SUM(O14+$K$121) -> 154 | P56: =SUM(P14+$K$121) -> 221
D58: Region 31Enhanced Life $100,00010-49 | E58: =SUM(E9+$E$122) -> 57.3 | F58: =SUM(F9+$E$122) -> 83.3 | G58: =SUM(G9+$E$122) -> 106.3 | H58: =SUM(H9+$H$122) -> 64.4 | I58: =SUM(I9+$H$122) -> 97.4 | J58: =SUM(J9+$H$122) -> 130.4 | K58: =SUM(K9+$H$122) -> 69.4 | L58: =SUM(L9+$H$122) -> 108.9 | M58: =SUM(M9+$H$122) -> 146.4 | N58: =SUM(N9+$K$122) -> 76 | O58: =SUM(O9+$K$122) -> 120 | P58: =SUM(P9+$K$122) -> 163.5
D59: Region 32Enhanced Life $100,00010-49 | E59: =SUM(E10+$E$122) -> 59.8 | F59: =SUM(F10+$E$122) -> 89.8 | G59: =SUM(G10+$E$122) -> 115.3 | H59: =SUM(H10+$H$122) -> 68.4 | I59: =SUM(I10+$H$122) -> 105.9 | J59: =SUM(J10+$H$122) -> 142.9 | K59: =SUM(K10+$H$122) -> 73.9 | L59: =SUM(L10+$H$122) -> 118.4 | M59: =SUM(M10+$H$122) -> 160.9 | N59: =SUM(N10+$K$122) -> 80.5 | O59: =SUM(O10+$K$122) -> 131.5 | P59: =SUM(P10+$K$122) -> 180
D60: Region 21Enhanced Life $100,00010-49 | E60: =SUM(E11+$E$122) -> 65.8 | F60: =SUM(F11+$E$122) -> 100.3 | G60: =SUM(G11+$E$122) -> 131.3 | H60: =SUM(H11+$H$122) -> 73.9 | I60: =SUM(I11+$H$122) -> 120.4 | J60: =SUM(J11+$H$122) -> 163.9 | K60: =SUM(K11+$H$122) -> 81.9 | L60: =SUM(L11+$H$122) -> 135.9 | M60: =SUM(M11+$H$122) -> 185.9 | N60: =SUM(N11+$K$122) -> 89 | O60: =SUM(O11+$K$122) -> 150 | P60: =SUM(P11+$K$122) -> 208
D61: Region 22Enhanced Life $100,00010-49 | E61: =SUM(E12+$E$122) -> 69.8 | F61: =SUM(F12+$E$122) -> 109.8 | G61: =SUM(G12+$E$122) -> 143.8 | H61: =SUM(H12+$H$122) -> 79.9 | I61: =SUM(I12+$H$122) -> 131.9 | J61: =SUM(J12+$H$122) -> 180.4 | K61: =SUM(K12+$H$122) -> 88.4 | L61: =SUM(L12+$H$122) -> 148.9 | M61: =SUM(M12+$H$122) -> 205.9 | N61: =SUM(N12+$K$122) -> 97 | O61: =SUM(O12+$K$122) -> 165 | P61: =SUM(P12+$K$122) -> 231
D62: Region 11Enhanced Life $100,00010-49 | E62: =SUM(E13+$E$122) -> 67.8 | F62: =SUM(F13+$E$122) -> 105.3 | G62: =SUM(G13+$E$122) -> 137.3 | H62: =SUM(H13+$H$122) -> 76.9 | I62: =SUM(I13+$H$122) -> 124.9 | J62: =SUM(J13+$H$122) -> 171.4 | K62: =SUM(K13+$H$122) -> 82.9 | L62: =SUM(L13+$H$122) -> 137.4 | M62: =SUM(M13+$H$122) -> 188.9 | N62: =SUM(N13+$K$122) -> 90 | O62: =SUM(O13+$K$122) -> 152 | P62: =SUM(P13+$K$122) -> 210.5
D63: Region 12Enhanced Life $100,00010-49 | E63: =SUM(E14+$E$122) -> 72.3 | F63: =SUM(F14+$E$122) -> 114.8 | G63: =SUM(G14+$E$122) -> 150.8 | H63: =SUM(H14+$H$122) -> 82.9 | I63: =SUM(I14+$H$122) -> 137.4 | J63: =SUM(J14+$H$122) -> 189.9 | K63: =SUM(K14+$H$122) -> 89.4 | L63: =SUM(L14+$H$122) -> 151.9 | M63: =SUM(M14+$H$122) -> 209.9 | N63: =SUM(N14+$K$122) -> 98 | O63: =SUM(O14+$K$122) -> 168 | P63: =SUM(P14+$K$122) -> 235
D65: Region 31Enhanced Life $150,00010-49 | E65: =SUM(E9+$E$123) -> 71.3 | F65: =SUM(F9+$E$123) -> 97.3 | G65: =SUM(G9+$E$123) -> 120.3 | H65: =SUM(H9+$H$123) -> 78.4 | I65: =SUM(I9+$H$123) -> 111.4 | J65: =SUM(J9+$H$123) -> 144.4 | K65: =SUM(K9+$H$123) -> 83.4 | L65: =SUM(L9+$H$123) -> 122.9 | M65: =SUM(M9+$H$123) -> 160.4 | N65: =SUM(N9+$K$123) -> 90 | O65: =SUM(O9+$K$123) -> 134 | P65: =SUM(P9+$K$123) -> 177.5
D66: Region 32Enhanced Life $150,00010-49 | E66: =SUM(E10+$E$123) -> 73.8 | F66: =SUM(F10+$E$123) -> 103.8 | G66: =SUM(G10+$E$123) -> 129.3 | H66: =SUM(H10+$H$123) -> 82.4 | I66: =SUM(I10+$H$123) -> 119.9 | J66: =SUM(J10+$H$123) -> 156.9 | K66: =SUM(K10+$H$123) -> 87.9 | L66: =SUM(L10+$H$123) -> 132.4 | M66: =SUM(M10+$H$123) -> 174.9 | N66: =SUM(N10+$K$123) -> 94.5 | O66: =SUM(O10+$K$123) -> 145.5 | P66: =SUM(P10+$K$123) -> 194
D67: Region 21Enhanced Life $150,00010-49 | E67: =SUM(E11+$E$123) -> 79.8 | F67: =SUM(F11+$E$123) -> 114.3 | G67: =SUM(G11+$E$123) -> 145.3 | H67: =SUM(H11+$H$123) -> 87.9 | I67: =SUM(I11+$H$123) -> 134.4 | J67: =SUM(J11+$H$123) -> 177.9 | K67: =SUM(K11+$H$123) -> 95.9 | L67: =SUM(L11+$H$123) -> 149.9 | M67: =SUM(M11+$H$123) -> 199.9 | N67: =SUM(N11+$K$123) -> 103 | O67: =SUM(O11+$K$123) -> 164 | P67: =SUM(P11+$K$123) -> 222
D68: Region 22Enhanced Life $150,00010-49 | E68: =SUM(E12+$E$123) -> 83.8 | F68: =SUM(F12+$E$123) -> 123.8 | G68: =SUM(G12+$E$123) -> 157.8 | H68: =SUM(H12+$H$123) -> 93.9 | I68: =SUM(I12+$H$123) -> 145.9 | J68: =SUM(J12+$H$123) -> 194.4 | K68: =SUM(K12+$H$123) -> 102.4 | L68: =SUM(L12+$H$123) -> 162.9 | M68: =SUM(M12+$H$123) -> 219.9 | N68: =SUM(N12+$K$123) -> 111 | O68: =SUM(O12+$K$123) -> 179 | P68: =SUM(P12+$K$123) -> 245
D69: Region 11Enhanced Life $150,00010-49 | E69: =SUM(E13+$E$123) -> 81.8 | F69: =SUM(F13+$E$123) -> 119.3 | G69: =SUM(G13+$E$123) -> 151.3 | H69: =SUM(H13+$H$123) -> 90.9 | I69: =SUM(I13+$H$123) -> 138.9 | J69: =SUM(J13+$H$123) -> 185.4 | K69: =SUM(K13+$H$123) -> 96.9 | L69: =SUM(L13+$H$123) -> 151.4 | M69: =SUM(M13+$H$123) -> 202.9 | N69: =SUM(N13+$K$123) -> 104 | O69: =SUM(O13+$K$123) -> 166 | P69: =SUM(P13+$K$123) -> 224.5
D70: Region 12Enhanced Life $150,00010-49 | E70: =SUM(E14+$E$123) -> 86.3 | F70: =SUM(F14+$E$123) -> 128.8 | G70: =SUM(G14+$E$123) -> 164.8 | H70: =SUM(H14+$H$123) -> 96.9 | I70: =SUM(I14+$H$123) -> 151.4 | J70: =SUM(J14+$H$123) -> 203.9 | K70: =SUM(K14+$H$123) -> 103.4 | L70: =SUM(L14+$H$123) -> 165.9 | M70: =SUM(M14+$H$123) -> 223.9 | N70: =SUM(N14+$K$123) -> 112 | O70: =SUM(O14+$K$123) -> 182 | P70: =SUM(P14+$K$123) -> 249
D72: Region 31Enhanced Life $35,00050-99 | E72: =SUM(E16+$E$124) -> 37.9 | F72: =SUM(F16+$E$124) -> 63.9 | G72: =SUM(G16+$E$124) -> 86.9 | H72: =SUM(H16+$H$124) -> 45.3 | I72: =SUM(I16+$H$124) -> 78.3 | J72: =SUM(J16+$H$124) -> 111.3 | K72: =SUM(K16+$H$124) -> 50.3 | L72: =SUM(L16+$H$124) -> 89.8 | M72: =SUM(M16+$H$124) -> 127.3 | N72: =SUM(N16+$K$124) -> 57.2 | O72: =SUM(O16+$K$124) -> 101.2 | P72: =SUM(P16+$K$124) -> 144.7
D73: Region 32Enhanced Life $35,00050-99 | E73: =SUM(E17+$E$124) -> 40.4 | F73: =SUM(F17+$E$124) -> 70.4 | G73: =SUM(G17+$E$124) -> 95.9 | H73: =SUM(H17+$H$124) -> 49.3 | I73: =SUM(I17+$H$124) -> 86.8 | J73: =SUM(J17+$H$124) -> 123.8 | K73: =SUM(K17+$H$124) -> 54.8 | L73: =SUM(L17+$H$124) -> 99.3 | M73: =SUM(M17+$H$124) -> 141.8 | N73: =SUM(N17+$K$124) -> 61.7 | O73: =SUM(O17+$K$124) -> 112.7 | P73: =SUM(P17+$K$124) -> 161.2
D74: Region 21Enhanced Life $35,00050-99 | E74: =SUM(E18+$E$124) -> 46.4 | F74: =SUM(F18+$E$124) -> 80.9 | G74: =SUM(G18+$E$124) -> 111.9 | H74: =SUM(H18+$H$124) -> 54.8 | I74: =SUM(I18+$H$124) -> 101.3 | J74: =SUM(J18+$H$124) -> 144.8 | K74: =SUM(K18+$H$124) -> 62.8 | L74: =SUM(L18+$H$124) -> 116.8 | M74: =SUM(M18+$H$124) -> 166.8 | N74: =SUM(N18+$K$124) -> 70.2 | O74: =SUM(O18+$K$124) -> 131.2 | P74: =SUM(P18+$K$124) -> 189.2
D75: Region 22Enhanced Life $35,00050-99 | E75: =SUM(E19+$E$124) -> 50.4 | F75: =SUM(F19+$E$124) -> 90.4 | G75: =SUM(G19+$E$124) -> 124.4 | H75: =SUM(H19+$H$124) -> 60.8 | I75: =SUM(I19+$H$124) -> 112.8 | J75: =SUM(J19+$H$124) -> 161.3 | K75: =SUM(K19+$H$124) -> 69.3 | L75: =SUM(L19+$H$124) -> 129.8 | M75: =SUM(M19+$H$124) -> 186.8 | N75: =SUM(N19+$K$124) -> 78.2 | O75: =SUM(O19+$K$124) -> 146.2 | P75: =SUM(P19+$K$124) -> 212.2
D76: Region 11Enhanced Life $35,00050-99 | E76: =SUM(E20+$E$124) -> 48.4 | F76: =SUM(F20+$E$124) -> 85.9 | G76: =SUM(G20+$E$124) -> 117.9 | H76: =SUM(H20+$H$124) -> 57.8 | I76: =SUM(I20+$H$124) -> 105.8 | J76: =SUM(J20+$H$124) -> 152.3 | K76: =SUM(K20+$H$124) -> 63.8 | L76: =SUM(L20+$H$124) -> 118.3 | M76: =SUM(M20+$H$124) -> 169.8 | N76: =SUM(N20+$K$124) -> 71.2 | O76: =SUM(O20+$K$124) -> 133.2 | P76: =SUM(P20+$K$124) -> 191.7
D77: Region 12Enhanced Life $35,00050-99 | E77: =SUM(E21+$E$124) -> 52.9 | F77: =SUM(F21+$E$124) -> 95.4 | G77: =SUM(G21+$E$124) -> 131.4 | H77: =SUM(H21+$H$124) -> 63.8 | I77: =SUM(I21+$H$124) -> 118.3 | J77: =SUM(J21+$H$124) -> 170.8 | K77: =SUM(K21+$H$124) -> 70.3 | L77: =SUM(L21+$H$124) -> 132.8 | M77: =SUM(M21+$H$124) -> 190.8 | N77: =SUM(N21+$K$124) -> 79.2 | O77: =SUM(O21+$K$124) -> 149.2 | P77: =SUM(P21+$K$124) -> 216.2
D79: Region 31Enhanced Life $50,00050-99 | E79: =SUM(E16+$E$125) -> 41.2 | F79: =SUM(F16+$E$125) -> 67.2 | G79: =SUM(G16+$E$125) -> 90.2 | H79: =SUM(H16+$H$125) -> 48.6 | I79: =SUM(I16+$H$125) -> 81.6 | J79: =SUM(J16+$H$125) -> 114.6 | K79: =SUM(K16+$H$125) -> 53.6 | L79: =SUM(L16+$H$125) -> 93.1 | M79: =SUM(M16+$H$125) -> 130.6 | N79: =SUM(N16+$K$125) -> 60.5 | O79: =SUM(O16+$K$125) -> 104.5 | P79: =SUM(P16+$K$125) -> 148
D80: Region 32Enhanced Life $50,00050-99 | E80: =SUM(E17+$E$125) -> 43.7 | F80: =SUM(F17+$E$125) -> 73.7 | G80: =SUM(G17+$E$125) -> 99.2 | H80: =SUM(H17+$H$125) -> 52.6 | I80: =SUM(I17+$H$125) -> 90.1 | J80: =SUM(J17+$H$125) -> 127.1 | K80: =SUM(K17+$H$125) -> 58.1 | L80: =SUM(L17+$H$125) -> 102.6 | M80: =SUM(M17+$H$125) -> 145.1 | N80: =SUM(N17+$K$125) -> 65 | O80: =SUM(O17+$K$125) -> 116 | P80: =SUM(P17+$K$125) -> 164.5
D81: Region 21Enhanced Life $50,00050-99 | E81: =SUM(E18+$E$125) -> 49.7 | F81: =SUM(F18+$E$125) -> 84.2 | G81: =SUM(G18+$E$125) -> 115.2 | H81: =SUM(H18+$H$125) -> 58.1 | I81: =SUM(I18+$H$125) -> 104.6 | J81: =SUM(J18+$H$125) -> 148.1 | K81: =SUM(K18+$H$125) -> 66.1 | L81: =SUM(L18+$H$125) -> 120.1 | M81: =SUM(M18+$H$125) -> 170.1 | N81: =SUM(N18+$K$125) -> 73.5 | O81: =SUM(O18+$K$125) -> 134.5 | P81: =SUM(P18+$K$125) -> 192.5
D82: Region 22Enhanced Life $50,00050-99 | E82: =SUM(E19+$E$125) -> 53.7 | F82: =SUM(F19+$E$125) -> 93.7 | G82: =SUM(G19+$E$125) -> 127.7 | H82: =SUM(H19+$H$125) -> 64.1 | I82: =SUM(I19+$H$125) -> 116.1 | J82: =SUM(J19+$H$125) -> 164.6 | K82: =SUM(K19+$H$125) -> 72.6 | L82: =SUM(L19+$H$125) -> 133.1 | M82: =SUM(M19+$H$125) -> 190.1 | N82: =SUM(N19+$K$125) -> 81.5 | O82: =SUM(O19+$K$125) -> 149.5 | P82: =SUM(P19+$K$125) -> 215.5
D83: Region 11Enhanced Life $50,00050-99 | E83: =SUM(E20+$E$125) -> 51.7 | F83: =SUM(F20+$E$125) -> 89.2 | G83: =SUM(G20+$E$125) -> 121.2 | H83: =SUM(H20+$H$125) -> 61.1 | I83: =SUM(I20+$H$125) -> 109.1 | J83: =SUM(J20+$H$125) -> 155.6 | K83: =SUM(K20+$H$125) -> 67.1 | L83: =SUM(L20+$H$125) -> 121.6 | M83: =SUM(M20+$H$125) -> 173.1 | N83: =SUM(N20+$K$125) -> 74.5 | O83: =SUM(O20+$K$125) -> 136.5 | P83: =SUM(P20+$K$125) -> 195
D84: Region 12Enhanced Life $50,00050-99 | E84: =SUM(E21+$E$125) -> 56.2 | F84: =SUM(F21+$E$125) -> 98.7 | G84: =SUM(G21+$E$125) -> 134.7 | H84: =SUM(H21+$H$125) -> 67.1 | I84: =SUM(I21+$H$125) -> 121.6 | J84: =SUM(J21+$H$125) -> 174.1 | K84: =SUM(K21+$H$125) -> 73.6 | L84: =SUM(L21+$H$125) -> 136.1 | M84: =SUM(M21+$H$125) -> 194.1 | N84: =SUM(N21+$K$125) -> 82.5 | O84: =SUM(O21+$K$125) -> 152.5 | P84: =SUM(P21+$K$125) -> 219.5
D86: Region 31Enhanced Life $100,00050-99 | E86: =SUM(E16+$E$126) -> 52.2 | F86: =SUM(F16+$E$126) -> 78.2 | G86: =SUM(G16+$E$126) -> 101.2 | H86: =SUM(H16+$H$126) -> 59.6 | I86: =SUM(I16+$H$126) -> 92.6 | J86: =SUM(J16+$H$126) -> 125.6 | K86: =SUM(K16+$H$126) -> 64.6 | L86: =SUM(L16+$H$126) -> 104.1 | M86: =SUM(M16+$H$126) -> 141.6 | N86: =SUM(N16+$K$126) -> 71.5 | O86: =SUM(O16+$K$126) -> 115.5 | P86: =SUM(P16+$K$126) -> 159
D87: Region 32Enhanced Life $100,00050-99 | E87: =SUM(E17+$E$126) -> 54.7 | F87: =SUM(F17+$E$126) -> 84.7 | G87: =SUM(G17+$E$126) -> 110.2 | H87: =SUM(H17+$H$126) -> 63.6 | I87: =SUM(I17+$H$126) -> 101.1 | J87: =SUM(J17+$H$126) -> 138.1 | K87: =SUM(K17+$H$126) -> 69.1 | L87: =SUM(L17+$H$126) -> 113.6 | M87: =SUM(M17+$H$126) -> 156.1 | N87: =SUM(N17+$K$126) -> 76 | O87: =SUM(O17+$K$126) -> 127 | P87: =SUM(P17+$K$126) -> 175.5
D88: Region 21Enhanced Life $100,00050-99 | E88: =SUM(E18+$E$126) -> 60.7 | F88: =SUM(F18+$E$126) -> 95.2 | G88: =SUM(G18+$E$126) -> 126.2 | H88: =SUM(H18+$H$126) -> 69.1 | I88: =SUM(I18+$H$126) -> 115.6 | J88: =SUM(J18+$H$126) -> 159.1 | K88: =SUM(K18+$H$126) -> 77.1 | L88: =SUM(L18+$H$126) -> 131.1 | M88: =SUM(M18+$H$126) -> 181.1 | N88: =SUM(N18+$K$126) -> 84.5 | O88: =SUM(O18+$K$126) -> 145.5 | P88: =SUM(P18+$K$126) -> 203.5
D89: Region 22Enhanced Life $100,00050-99 | E89: =SUM(E19+$E$126) -> 64.7 | F89: =SUM(F19+$E$126) -> 104.7 | G89: =SUM(G19+$E$126) -> 138.7 | H89: =SUM(H19+$H$126) -> 75.1 | I89: =SUM(I19+$H$126) -> 127.1 | J89: =SUM(J19+$H$126) -> 175.6 | K89: =SUM(K19+$H$126) -> 83.6 | L89: =SUM(L19+$H$126) -> 144.1 | M89: =SUM(M19+$H$126) -> 201.1 | N89: =SUM(N19+$K$126) -> 92.5 | O89: =SUM(O19+$K$126) -> 160.5 | P89: =SUM(P19+$K$126) -> 226.5
D90: Region 11Enhanced Life $100,00050-99 | E90: =SUM(E20+$E$126) -> 62.7 | F90: =SUM(F20+$E$126) -> 100.2 | G90: =SUM(G20+$E$126) -> 132.2 | H90: =SUM(H20+$H$126) -> 72.1 | I90: =SUM(I20+$H$126) -> 120.1 | J90: =SUM(J20+$H$126) -> 166.6 | K90: =SUM(K20+$H$126) -> 78.1 | L90: =SUM(L20+$H$126) -> 132.6 | M90: =SUM(M20+$H$126) -> 184.1 | N90: =SUM(N20+$K$126) -> 85.5 | O90: =SUM(O20+$K$126) -> 147.5 | P90: =SUM(P20+$K$126) -> 206
D91: Region 12Enhanced Life $100,00050-99 | E91: =SUM(E21+$E$126) -> 67.2 | F91: =SUM(F21+$E$126) -> 109.7 | G91: =SUM(G21+$E$126) -> 145.7 | H91: =SUM(H21+$H$126) -> 78.1 | I91: =SUM(I21+$H$126) -> 132.6 | J91: =SUM(J21+$H$126) -> 185.1 | K91: =SUM(K21+$H$126) -> 84.6 | L91: =SUM(L21+$H$126) -> 147.1 | M91: =SUM(M21+$H$126) -> 205.1 | N91: =SUM(N21+$K$126) -> 93.5 | O91: =SUM(O21+$K$126) -> 163.5 | P91: =SUM(P21+$K$126) -> 230.5
D93: Region 31Enhanced Life $150,00050-99 | E93: =SUM(E16+$E$127) -> 63.2 | F93: =SUM(F16+$E$127) -> 89.2 | G93: =SUM(G16+$E$127) -> 112.2 | H93: =SUM(H16+$H$127) -> 70.6 | I93: =SUM(I16+$H$127) -> 103.6 | J93: =SUM(J16+$H$127) -> 136.6 | K93: =SUM(K16+$H$127) -> 75.6 | L93: =SUM(L16+$H$127) -> 115.1 | M93: =SUM(M16+$H$127) -> 152.6 | N93: =SUM(N16+$K$127) -> 82.5 | O93: =SUM(O16+$K$127) -> 126.5 | P93: =SUM(P16+$K$127) -> 170
D94: Region 32Enhanced Life $150,00050-99 | E94: =SUM(E17+$E$127) -> 65.7 | F94: =SUM(F17+$E$127) -> 95.7 | G94: =SUM(G17+$E$127) -> 121.2 | H94: =SUM(H17+$H$127) -> 74.6 | I94: =SUM(I17+$H$127) -> 112.1 | J94: =SUM(J17+$H$127) -> 149.1 | K94: =SUM(K17+$H$127) -> 80.1 | L94: =SUM(L17+$H$127) -> 124.6 | M94: =SUM(M17+$H$127) -> 167.1 | N94: =SUM(N17+$K$127) -> 87 | O94: =SUM(O17+$K$127) -> 138 | P94: =SUM(P17+$K$127) -> 186.5
D95: Region 21Enhanced Life $150,00050-99 | E95: =SUM(E18+$E$127) -> 71.7 | F95: =SUM(F18+$E$127) -> 106.2 | G95: =SUM(G18+$E$127) -> 137.2 | H95: =SUM(H18+$H$127) -> 80.1 | I95: =SUM(I18+$H$127) -> 126.6 | J95: =SUM(J18+$H$127) -> 170.1 | K95: =SUM(K18+$H$127) -> 88.1 | L95: =SUM(L18+$H$127) -> 142.1 | M95: =SUM(M18+$H$127) -> 192.1 | N95: =SUM(N18+$K$127) -> 95.5 | O95: =SUM(O18+$K$127) -> 156.5 | P95: =SUM(P18+$K$127) -> 214.5
D96: Region 22Enhanced Life $150,00050-99 | E96: =SUM(E19+$E$127) -> 75.7 | F96: =SUM(F19+$E$127) -> 115.7 | G96: =SUM(G19+$E$127) -> 149.7 | H96: =SUM(H19+$H$127) -> 86.1 | I96: =SUM(I19+$H$127) -> 138.1 | J96: =SUM(J19+$H$127) -> 186.6 | K96: =SUM(K19+$H$127) -> 94.6 | L96: =SUM(L19+$H$127) -> 155.1 | M96: =SUM(M19+$H$127) -> 212.1 | N96: =SUM(N19+$K$127) -> 103.5 | O96: =SUM(O19+$K$127) -> 171.5 | P96: =SUM(P19+$K$127) -> 237.5
D97: Region 11Enhanced Life $150,00050-99 | E97: =SUM(E20+$E$127) -> 73.7 | F97: =SUM(F20+$E$127) -> 111.2 | G97: =SUM(G20+$E$127) -> 143.2 | H97: =SUM(H20+$H$127) -> 83.1 | I97: =SUM(I20+$H$127) -> 131.1 | J97: =SUM(J20+$H$127) -> 177.6 | K97: =SUM(K20+$H$127) -> 89.1 | L97: =SUM(L20+$H$127) -> 143.6 | M97: =SUM(M20+$H$127) -> 195.1 | N97: =SUM(N20+$K$127) -> 96.5 | O97: =SUM(O20+$K$127) -> 158.5 | P97: =SUM(P20+$K$127) -> 217
D98: Region 12Enhanced Life $150,00050-99 | E98: =SUM(E21+$E$127) -> 78.2 | F98: =SUM(F21+$E$127) -> 120.7 | G98: =SUM(G21+$E$127) -> 156.7 | H98: =SUM(H21+$H$127) -> 89.1 | I98: =SUM(I21+$H$127) -> 143.6 | J98: =SUM(J21+$H$127) -> 196.1 | K98: =SUM(K21+$H$127) -> 95.6 | L98: =SUM(L21+$H$127) -> 158.1 | M98: =SUM(M21+$H$127) -> 216.1 | N98: =SUM(N21+$K$127) -> 104.5 | O98: =SUM(O21+$K$127) -> 174.5 | P98: =SUM(P21+$K$127) -> 241.5
D101: List_RateTable_VOLPPO | E101: ALL PLANS
D102: Region 31WithOrtho | E102: 49 | F102: 95 | G102: 143.5 | H102: X | I102: X | J102: X | K102: X | L102: X | M102: X | N102: X | O102: X | P102: X
D103: Region 32WithOrtho | E103: 53.5 | F103: 105.5 | G103: 160 | H103: X | I103: X | J103: X | K103: X | L103: X | M103: X | N103: X | O103: X | P103: X
D104: Region 21WithOrtho | E104: 62 | F104: 125 | G104: 188 | H104: X | I104: X | J104: X | K104: X | L104: X | M104: X | N104: X | O104: X | P104: X
D105: Region 22WithOrtho | E105: 70 | F105: 141 | G105: 211 | H105: X | I105: X | J105: X | K105: X | L105: X | M105: X | N105: X | O105: X | P105: X
D106: Region 11WithOrtho | E106: 69 | F106: 139 | G106: 208 | H106: X | I106: X | J106: X | K106: X | L106: X | M106: X | N106: X | O106: X | P106: X
D107: Region 12WithOrtho | E107: 76.5 | F107: 156.5 | G107: 234 | H107: X | I107: X | J107: X | K107: X | L107: X | M107: X | N107: X | O107: X | P107: X
D109: Region 31WithoutOrtho | E109: 49 | F109: 92 | G109: 135 | H109: X | I109: X | J109: X | K109: X | L109: X | M109: X | N109: X | O109: X | P109: X
D110: Region 32WithoutOrtho | E110: 53.5 | F110: 103.5 | G110: 150.5 | H110: X | I110: X | J110: X | K110: X | L110: X | M110: X | N110: X | O110: X | P110: X
D111: Region 21WithoutOrtho | E111: 62 | F111: 122 | G111: 176 | H111: X | I111: X | J111: X | K111: X | L111: X | M111: X | N111: X | O111: X | P111: X
D112: Region 22WithoutOrtho | E112: 70 | F112: 137.5 | G112: 198.5 | H112: X | I112: X | J112: X | K112: X | L112: X | M112: X | N112: X | O112: X | P112: X
D113: Region 11WithoutOrtho | E113: 69 | F113: 135.5 | G113: 195.5 | H113: X | I113: X | J113: X | K113: X | L113: X | M113: X | N113: X | O113: X | P113: X
D114: Region 12WithoutOrtho | E114: 76.5 | F114: 152.5 | G114: 219.5 | H114: X | I114: X | J114: X | K114: X | L114: X | M114: X | N114: X | O114: X | P114: X
D118: Enhanced Life Rates | E118: GOOD | H118: BETTER | K118: BEST | N118: BETTER PLUS
D119: $35,000 2-9 Enrolled | E119: 8.6 | H119: 6.45 | K119: 4.3 | N119: 6.45
D120: $35,000 10-49 Enrolled | E120: 5.6 | H120: 4.2 | K120: 2.8 | N120: 4.2
D121: $50,000 10-49 Enrolled | E121: 9.8 | H121: 8.4 | K121: 7 | N121: 8.4
D122: $100,000 10-49 Enrolled | E122: 23.8 | H122: 22.4 | K122: 21 | N122: 22.4
D123: $150,000 10-49 Enrolled | E123: 37.8 | H123: 36.4 | K123: 35 | N123: 36.4
D124: $35,000 50-99 Enrolled | E124: 4.4 | H124: 3.3 | K124: 2.2 | N124: 3.3
D125: $50,000 50-99 Enrolled | E125: 7.7 | H125: 6.6 | K125: 5.5 | N125: 6.6
D126: $100,000 50-99 Enrolled | E126: 18.7 | H126: 17.6 | K126: 16.5 | N126: 17.6
D127: $150,000 50-99 Enrolled | E127: 29.7 | H127: 28.6 | K127: 27.5 | N127: 28.6
D128: List_RateTable_HMO | E128: GOOD (2-99) | H128: BETTER (5-99) | K128: BEST (5-99) | N128: BETTER PLUS
B129: DHMO Bundle Only Use! | D129: Region 1Standard Life Amount0-4 | E129: 35 | F129: 55.5 | G129: 80.5 | H129: X | I129: X | J129: X | K129: X | L129: X | M129: X | N129: X | O129: X | P129: X
B130: DHMO Bundle Only Use! | D130: Region 2Standard Life Amount0-4 | E130: 34.5 | F130: 52.5 | G130: 77 | H130: X | I130: X | J130: X | K130: X | L130: X | M130: X | N130: X | O130: X | P130: X
B132: Dual Choice Only Use! | D132: Region 1Standard Life Amount2-9 | E132: 35 | F132: 55.5 | G132: 80.5 | H132: 39 | I132: 60.5 | J132: 86.5 | K132: 43 | L132: 65.5 | M132: 94.5 | N132: X | O132: X | P132: X
B133: Dual Choice Only Use! | D133: Region 2Standard Life Amount2-9 | E133: 34.5 | F133: 52.5 | G133: 77 | H133: 37.5 | I133: 57.5 | J133: 84 | K133: 42.5 | L133: 62.5 | M133: 91 | N133: X | O133: X | P133: X
B135: DHMO Bundle Only Use! | D135: Region 1Standard Life Amount5-9 | E135: 35 | F135: 55.5 | G135: 80.5 | H135: 39 | I135: 60.5 | J135: 86.5 | K135: 43 | L135: 65.5 | M135: 94.5 | N135: X | O135: X | P135: X
B136: DHMO Bundle Only Use! | D136: Region 2Standard Life Amount5-9 | E136: 34.5 | F136: 52.5 | G136: 77 | H136: 37.5 | I136: 57.5 | J136: 84 | K136: 42.5 | L136: 62.5 | M136: 91 | N136: X | O136: X | P136: X
D138: Region 1Standard Life Amount10-49 | E138: 35 | F138: 55.5 | G138: 80.5 | H138: 39 | I138: 60.5 | J138: 86.5 | K138: 43 | L138: 65.5 | M138: 94.5 | N138: X | O138: X | P138: X
D139: Region 2Standard Life Amount10-49 | E139: 34.5 | F139: 52.5 | G139: 77 | H139: 37.5 | I139: 57.5 | J139: 84 | K139: 42.5 | L139: 62.5 | M139: 91 | N139: X | O139: X | P139: X
D141: Region 1Standard Life Amount50-99 | E141: 35 | F141: 55.5 | G141: 80.5 | H141: 39 | I141: 60.5 | J141: 86.5 | K141: 43 | L141: 65.5 | M141: 94.5 | N141: X | O141: X | P141: X
D142: Region 2Standard Life Amount50-99 | E142: 34.5 | F142: 52.5 | G142: 77 | H142: 37.5 | I142: 57.5 | J142: 84 | K142: 42.5 | L142: 62.5 | M142: 91 | N142: X | O142: X | P142: X
D144: Region 1Enhanced Life $35,0000-4 | E144: =SUM(E129+$E$119) -> 43.6 | F144: =SUM(F129+$E$119) -> 64.1 | G144: =SUM(G129+$E$119) -> 89.1 | H144: X | I144: X | J144: X | K144: X | L144: X | M144: X | N144: X | O144: X | P144: X
D145: Region 2Enhanced Life $35,0000-4 | E145: =SUM(E130+$E$119) -> 43.1 | F145: =SUM(F130+$E$119) -> 61.1 | G145: =SUM(G130+$E$119) -> 85.6 | H145: X | I145: X | J145: X | K145: X | L145: X | M145: X | N145: X | O145: X | P145: X
D147: Region 1Enhanced Life $35,0002-9 | E147: =SUM(E132+$E$119) -> 43.6 | F147: =SUM(F132+$E$119) -> 64.1 | G147: =SUM(G132+$E$119) -> 89.1 | H147: =SUM(H132+$H$119) -> 45.45 | I147: =SUM(I132+$H$119) -> 66.95 | J147: =SUM(J132+$H$119) -> 92.95 | K147: =SUM(K132+$K$119) -> 47.3 | L147: =SUM(L132+$K$119) -> 69.8 | M147: =SUM(M132+$K$119) -> 98.8 | N147: X | O147: X | P147: X
D148: Region 2Enhanced Life $35,0002-9 | E148: =SUM(E133+$E$119) -> 43.1 | F148: =SUM(F133+$E$119) -> 61.1 | G148: =SUM(G133+$E$119) -> 85.6 | H148: =SUM(H133+$H$119) -> 43.95 | I148: =SUM(I133+$H$119) -> 63.95 | J148: =SUM(J133+$H$119) -> 90.45 | K148: =SUM(K133+$K$119) -> 46.8 | L148: =SUM(L133+$K$119) -> 66.8 | M148: =SUM(M133+$K$119) -> 95.3 | N148: X | O148: X | P148: X
D150: Region 1Enhanced Life $35,0005-9 | E150: =SUM(E135+$E$119) -> 43.6 | F150: =SUM(F135+$E$119) -> 64.1 | G150: =SUM(G135+$E$119) -> 89.1 | H150: =SUM(H135+$H$119) -> 45.45 | I150: =SUM(I135+$H$119) -> 66.95 | J150: =SUM(J135+$H$119) -> 92.95 | K150: =SUM(K135+$K$119) -> 47.3 | L150: =SUM(L135+$K$119) -> 69.8 | M150: =SUM(M135+$K$119) -> 98.8 | N150: X | O150: X | P150: X
D151: Region 2Enhanced Life $35,0005-9 | E151: =SUM(E136+$E$119) -> 43.1 | F151: =SUM(F136+$E$119) -> 61.1 | G151: =SUM(G136+$E$119) -> 85.6 | H151: =SUM(H136+$H$119) -> 43.95 | I151: =SUM(I136+$H$119) -> 63.95 | J151: =SUM(J136+$H$119) -> 90.45 | K151: =SUM(K136+$K$119) -> 46.8 | L151: =SUM(L136+$K$119) -> 66.8 | M151: =SUM(M136+$K$119) -> 95.3 | N151: X | O151: X | P151: X
D153: Region 1Enhanced Life $35,00010-49 | E153: =SUM(E135+$E$120) -> 40.6 | F153: =SUM(F135+$E$120) -> 61.1 | G153: =SUM(G135+$E$120) -> 86.1 | H153: =SUM(H135+$H$120) -> 43.2 | I153: =SUM(I135+$H$120) -> 64.7 | J153: =SUM(J135+$H$120) -> 90.7 | K153: =SUM(K135+$K$120) -> 45.8 | L153: =SUM(L135+$K$120) -> 68.3 | M153: =SUM(M135+$K$120) -> 97.3 | N153: X | O153: X | P153: X
D154: Region 2Enhanced Life $35,00010-49 | E154: =SUM(E136+$E$120) -> 40.1 | F154: =SUM(F136+$E$120) -> 58.1 | G154: =SUM(G136+$E$120) -> 82.6 | H154: =SUM(H136+$H$120) -> 41.7 | I154: =SUM(I136+$H$120) -> 61.7 | J154: =SUM(J136+$H$120) -> 88.2 | K154: =SUM(K136+$K$120) -> 45.3 | L154: =SUM(L136+$K$120) -> 65.3 | M154: =SUM(M136+$K$120) -> 93.8 | N154: X | O154: X | P154: X
D155: Region 1Enhanced Life $35,00050-99 | E155: =SUM(E135+$E$124) -> 39.4 | F155: =SUM(F135+$E$124) -> 59.9 | G155: =SUM(G135+$E$124) -> 84.9 | H155: =SUM(H135+$H$124) -> 42.3 | I155: =SUM(I135+$H$124) -> 63.8 | J155: =SUM(J135+$H$124) -> 89.8 | K155: =SUM(K135+$K$124) -> 45.2 | L155: =SUM(L135+$K$124) -> 67.7 | M155: =SUM(M135+$K$124) -> 96.7 | N155: X | O155: X | P155: X
D156: Region 2Enhanced Life $35,00050-99 | E156: =SUM(E136+$E$124) -> 38.9 | F156: =SUM(F136+$E$124) -> 56.9 | G156: =SUM(G136+$E$124) -> 81.4 | H156: =SUM(H136+$H$124) -> 40.8 | I156: =SUM(I136+$H$124) -> 60.8 | J156: =SUM(J136+$H$124) -> 87.3 | K156: =SUM(K136+$K$124) -> 44.7 | L156: =SUM(L136+$K$124) -> 64.7 | M156: =SUM(M136+$K$124) -> 93.2 | N156: X | O156: X | P156: X
D158: Region 1Enhanced Life $50,00010-49 | E158: =SUM(E135+$E$121) -> 44.8 | F158: =SUM(F135+$E$121) -> 65.3 | G158: =SUM(G135+$E$121) -> 90.3 | H158: =SUM(H135+$H$121) -> 47.4 | I158: =SUM(I135+$H$121) -> 68.9 | J158: =SUM(J135+$H$121) -> 94.9 | K158: =SUM(K135+$K$121) -> 50 | L158: =SUM(L135+$K$121) -> 72.5 | M158: =SUM(M135+$K$121) -> 101.5 | N158: X | O158: X | P158: X
D159: Region 2Enhanced Life $50,00010-49 | E159: =SUM(E136+$E$121) -> 44.3 | F159: =SUM(F136+$E$121) -> 62.3 | G159: =SUM(G136+$E$121) -> 86.8 | H159: =SUM(H136+$H$121) -> 45.9 | I159: =SUM(I136+$H$121) -> 65.9 | J159: =SUM(J136+$H$121) -> 92.4 | K159: =SUM(K136+$K$121) -> 49.5 | L159: =SUM(L136+$K$121) -> 69.5 | M159: =SUM(M136+$K$121) -> 98 | N159: X | O159: X | P159: X
D160: Region 1Enhanced Life $50,00050-99 | E160: =SUM(E135+$E$125) -> 42.7 | F160: =SUM(F135+$E$125) -> 63.2 | G160: =SUM(G135+$E$125) -> 88.2 | H160: =SUM(H135+$H$125) -> 45.6 | I160: =SUM(I135+$H$125) -> 67.1 | J160: =SUM(J135+$H$125) -> 93.1 | K160: =SUM(K135+$K$125) -> 48.5 | L160: =SUM(L135+$K$125) -> 71 | M160: =SUM(M135+$K$125) -> 100 | N160: X | O160: X | P160: X
D161: Region 2Enhanced Life $50,00050-99 | E161: =SUM(E136+$E$125) -> 42.2 | F161: =SUM(F136+$E$125) -> 60.2 | G161: =SUM(G136+$E$125) -> 84.7 | H161: =SUM(H136+$H$125) -> 44.1 | I161: =SUM(I136+$H$125) -> 64.1 | J161: =SUM(J136+$H$125) -> 90.6 | K161: =SUM(K136+$K$125) -> 48 | L161: =SUM(L136+$K$125) -> 68 | M161: =SUM(M136+$K$125) -> 96.5 | N161: X | O161: X | P161: X
D163: Region 1Enhanced Life $100,00010-49 | E163: =SUM(E135+$E$122) -> 58.8 | F163: =SUM(F135+$E$122) -> 79.3 | G163: =SUM(G135+$E$122) -> 104.3 | H163: =SUM(H135+$H$122) -> 61.4 | I163: =SUM(I135+$H$122) -> 82.9 | J163: =SUM(J135+$H$122) -> 108.9 | K163: =SUM(K135+$K$122) -> 64 | L163: =SUM(L135+$K$122) -> 86.5 | M163: =SUM(M135+$K$122) -> 115.5 | N163: X | O163: X | P163: X
D164: Region 2Enhanced Life $100,00010-49 | E164: =SUM(E136+$E$122) -> 58.3 | F164: =SUM(F136+$E$122) -> 76.3 | G164: =SUM(G136+$E$122) -> 100.8 | H164: =SUM(H136+$H$122) -> 59.9 | I164: =SUM(I136+$H$122) -> 79.9 | J164: =SUM(J136+$H$122) -> 106.4 | K164: =SUM(K136+$K$122) -> 63.5 | L164: =SUM(L136+$K$122) -> 83.5 | M164: =SUM(M136+$K$122) -> 112 | N164: X | O164: X | P164: X
D165: Region 1Enhanced Life $100,00050-99 | E165: =SUM(E135+$E$126) -> 53.7 | F165: =SUM(F135+$E$126) -> 74.2 | G165: =SUM(G135+$E$126) -> 99.2 | H165: =SUM(H135+$H$126) -> 56.6 | I165: =SUM(I135+$H$126) -> 78.1 | J165: =SUM(J135+$H$126) -> 104.1 | K165: =SUM(K135+$K$126) -> 59.5 | L165: =SUM(L135+$K$126) -> 82 | M165: =SUM(M135+$K$126) -> 111 | N165: X | O165: X | P165: X
D166: Region 2Enhanced Life $100,00050-99 | E166: =SUM(E136+$E$126) -> 53.2 | F166: =SUM(F136+$E$126) -> 71.2 | G166: =SUM(G136+$E$126) -> 95.7 | H166: =SUM(H136+$H$126) -> 55.1 | I166: =SUM(I136+$H$126) -> 75.1 | J166: =SUM(J136+$H$126) -> 101.6 | K166: =SUM(K136+$K$126) -> 59 | L166: =SUM(L136+$K$126) -> 79 | M166: =SUM(M136+$K$126) -> 107.5 | N166: X | O166: X | P166: X
D168: Region 1Enhanced Life $150,00010-49 | E168: =SUM(E135+$E$123) -> 72.8 | F168: =SUM(F135+$E$123) -> 93.3 | G168: =SUM(G135+$E$123) -> 118.3 | H168: =SUM(H135+$H$123) -> 75.4 | I168: =SUM(I135+$H$123) -> 96.9 | J168: =SUM(J135+$H$123) -> 122.9 | K168: =SUM(K135+$K$123) -> 78 | L168: =SUM(L135+$K$123) -> 100.5 | M168: =SUM(M135+$K$123) -> 129.5 | N168: X | O168: X | P168: X
D169: Region 2Enhanced Life $150,00010-49 | E169: =SUM(E136+$E$123) -> 72.3 | F169: =SUM(F136+$E$123) -> 90.3 | G169: =SUM(G136+$E$123) -> 114.8 | H169: =SUM(H136+$H$123) -> 73.9 | I169: =SUM(I136+$H$123) -> 93.9 | J169: =SUM(J136+$H$123) -> 120.4 | K169: =SUM(K136+$K$123) -> 77.5 | L169: =SUM(L136+$K$123) -> 97.5 | M169: =SUM(M136+$K$123) -> 126 | N169: X | O169: X | P169: X
D170: Region 1Enhanced Life $150,00050-99 | E170: =SUM(E135+$E$127) -> 64.7 | F170: =SUM(F135+$E$127) -> 85.2 | G170: =SUM(G135+$E$127) -> 110.2 | H170: =SUM(H135+$H$127) -> 67.6 | I170: =SUM(I135+$H$127) -> 89.1 | J170: =SUM(J135+$H$127) -> 115.1 | K170: =SUM(K135+$K$127) -> 70.5 | L170: =SUM(L135+$K$127) -> 93 | M170: =SUM(M135+$K$127) -> 122 | N170: X | O170: X | P170: X
D171: Region 2Enhanced Life $150,00050-99 | E171: =SUM(E136+$E$127) -> 64.2 | F171: =SUM(F136+$E$127) -> 82.2 | G171: =SUM(G136+$E$127) -> 106.7 | H171: =SUM(H136+$H$127) -> 66.1 | I171: =SUM(I136+$H$127) -> 86.1 | J171: =SUM(J136+$H$127) -> 112.6 | K171: =SUM(K136+$K$127) -> 70 | L171: =SUM(L136+$K$127) -> 90 | M171: =SUM(M136+$K$127) -> 118.5 | N171: X | O171: X | P171: X
D173: List_RateTable_VOLHMO | E173: ALL PLANS
D174: Region 1 | E174: 41 | F174: 64.5 | G174: 100.5 | H174: X | I174: X | J174: X | K174: X | L174: X | M174: X | N174: X | O174: X | P174: X
D175: Region 2 | E175: 39 | F175: 61.5 | G175: 95.5 | H175: X | I175: X | J175: X | K175: X | L175: X | M175: X | N175: X | O175: X | P175: X
